Body Name,Body,Service Division Label,Service Division Code,Organisational Unit,Expenditure Category,Expenditure Code,CIPFA detailed expediture type,CIPFA detailed expediture code,Narrative,Date,Transaction number,Net Amount,Capital and Revenue,Supplier Name,Supplier ID
Chorley Borough Council,http://statistics.data.gov.uk/id/local-authority/30UE,Central Support Services,1009,Early Intervention,Core Funding Grants,40133,Grants and Subscriptions,5031,small comm grant funding,09/01/2019,132860,255.00,Revenue,4th Chorley St. Peters Guides,77568
Chorley Borough Council,http://statistics.data.gov.uk/id/local-authority/30UE,Capital,Capital,Early Intervention,Grants,3002,Capital Expenditure,Capital,DFG adaptation work undertaken at ADDRESS REDACTED,09/01/2019,134871,"10,641.91",Capital,Access Able UK Ltd,58149
Chorley Borough Council,http://statistics.data.gov.uk/id/local-authority/30UE,Democratic Represent and  Mgnt,1007,Policy & Governance,Other Fees,40212,Miscellaneous Expenses,5034,Lancastrian bar fees for December 2018,02/01/2019,134769,260.00,Revenue,Ace Bars Ltd,54338
Chorley Borough Council,http://statistics.data.gov.uk/id/local-authority/30UE,Central Support Services,1009,Policy & Governance,Exhibitions & Special Events,40158,Miscellaneous Expenses,5034,Provision for security of Ice Rink,11/01/2019,134744,"3,471.00",Revenue,Active Eye Security,77726
Chorley Borough Council,http://statistics.data.gov.uk/id/local-authority/30UE,Unapportionable Central OHeads,1009,Policy & Governance,Exhibitions & Special Events,40158,Miscellaneous Expenses,5034,Provision for security of Ice Rink,11/01/2019,134745,"1,313.00",Revenue,Active Eye Security,77726
Chorley Borough Council,http://statistics.data.gov.uk/id/local-authority/30UE,Unapportionable Central OHeads,1009,Policy & Governance,Exhibitions & Special Events,40158,Miscellaneous Expenses,5034,Provision for security of Ice Rink,30/01/2019,135317,351.00,Revenue,Active Eye Security,77726
Chorley Borough Council,http://statistics.data.gov.uk/id/local-authority/30UE,Unapportionable Central OHeads,1009,Policy & Governance,Exhibitions & Special Events,40158,Miscellaneous Expenses,5034,Provision for security of Ice Rink,30/01/2019,135342,"1,365.00",Revenue,Active Eye Security,77726
Chorley Borough Council,http://statistics.data.gov.uk/id/local-authority/30UE,Recreation & Sport,1037,Early Intervention,External Contractor - Trust or Charity,50008,Private Contractors,5042,ADDING VALUE WRITTEN OFF IN ERROR,30/01/2019,134902,"33,911.84",Revenue,Active Nation UK Ltd,17144
Chorley Borough Council,http://statistics.data.gov.uk/id/local-authority/30UE,Central Support Services,1009,Customer & Digital,Computer Equipment-Purchase,40098,Communication and Computing,5028,Installation Charge - 2107 Annual Rental - 4013,30/01/2019,133799,"1,418.81",Revenue,Adept Telecom PLC,77452
Chorley Borough Council,http://statistics.data.gov.uk/id/local-authority/30UE,Central Support Services,1009,Customer & Digital,Consultants` Fees,40077,Services,5027,October invoice 2567.23,30/01/2019,135149,"2,139.36",Revenue,Adept Telecom PLC,77452
Chorley Borough Council,http://statistics.data.gov.uk/id/local-authority/30UE,Central Support Services,1009,Customer & Digital,Computer Equipment-Purchase,40098,Communication and Computing,5028,"Installation Charge - 2107 Annual Rental - 4013",30/01/2019,135427,334.42,Revenue,Adept Telecom PLC,77452
Chorley Borough Council,http://statistics.data.gov.uk/id/local-authority/30UE,Central Support Services,1009,Customer & Digital,Computer Equipment-Purchase,40098,Communication and Computing,5028,"Installation Charge - 2107 Annual Rental - 4013",30/01/2019,135430,"1,418.81",Revenue,Adept Telecom PLC,77452
Chorley Borough Council,http://statistics.data.gov.uk/id/local-authority/30UE,Economic Development,1096,Customer & Digital,Fixtures & Fittings - Purchase,20027,Fixtures and Fittings,5010,"MATERIALS To design, supply materials and erect two memorial benches at Chapel St+J1Including memorial stones",11/01/2019,135012,"3,600.00",Revenue,Adlington Dry Stone Walling,63372
Chorley Borough Council,http://statistics.data.gov.uk/id/local-authority/30UE,Economic Development,1096,Customer & Digital,Fixtures & Fittings - Purchase,20027,Fixtures and Fittings,5010,"LABOUR To design, supply materials and erect two memorial benches at Chapel St",11/01/2019,135012,"2,200.00",Revenue,Adlington Dry Stone Walling,63372
Chorley Borough Council,http://statistics.data.gov.uk/id/local-authority/30UE,Unapportionable Central OHeads,1009,Business Development & Growth,Fire Alarms,20072,Fixtures and Fittings,5010,Reactive call outs FIRE,25/01/2019,135215,286.00,Revenue,ADT Fire & Security,16645
Chorley Borough Council,http://statistics.data.gov.uk/id/local-authority/30UE,Unapportionable Central OHeads,1009,Customer & Digital,Bank Charges,40151,Miscellaneous Expenses,5034,add a/c fee,09/01/2019,134959,10.37,Revenue,Allpay Net Ltd,17242
Chorley Borough Council,http://statistics.data.gov.uk/id/local-authority/30UE,Unapportionable Central OHeads,1009,Customer & Digital,Bank Charges,40151,Miscellaneous Expenses,5034,returned cheques,09/01/2019,134959,4.20,Revenue,Allpay Net Ltd,17242
Chorley Borough Council,http://statistics.data.gov.uk/id/local-authority/30UE,Unapportionable Central OHeads,1009,Customer & Digital,Bank Charges,40151,Miscellaneous Expenses,5034,post office,09/01/2019,134959,847.77,Revenue,Allpay Net Ltd,17242
Chorley Borough Council,http://statistics.data.gov.uk/id/local-authority/30UE,Unapportionable Central OHeads,1009,Customer & Digital,Bank Charges,40151,Miscellaneous Expenses,5034,paypoint,09/01/2019,134959,497.74,Revenue,Allpay Net Ltd,17242
Chorley Borough Council,http://statistics.data.gov.uk/id/local-authority/30UE,Unapportionable Central OHeads,1009,Customer & Digital,Bank Charges,40151,Miscellaneous Expenses,5034,webcon,09/01/2019,134959,47.72,Revenue,Allpay Net Ltd,17242
Chorley Borough Council,http://statistics.data.gov.uk/id/local-authority/30UE,Economic Development,1096,Business Development & Growth,Cleaning Materials,40019,"Equipment, Furniture & Materia",5023,Please supply as per e-mail janitorial products,16/01/2019,135074,284.12,Revenue,Amtoll Ltd,21738
Chorley Borough Council,http://statistics.data.gov.uk/id/local-authority/30UE,Economic Development,1096,Business Development & Growth,Cleaning Materials,40019,"Equipment, Furniture & Materia",5023,Please supply cleaning equipment as per e-mail.,30/01/2019,135408,293.54,Revenue,Amtoll Ltd,21738
Chorley Borough Council,http://statistics.data.gov.uk/id/local-authority/30UE,Business Support,1095,Business Development & Growth,Miscellaneous Expenses,40200,Miscellaneous Expenses,5034,6 kettles for Strawberry Fields Digital Hub. Bosch Sky TWK7203GB Kettle with Temperature Selector - Black.79.00 each ,30/01/2019,135305,394.98,Revenue,AO Retail Limited,77790
Chorley Borough Council,http://statistics.data.gov.uk/id/local-authority/30UE,Business Support,1095,Business Development & Growth,Miscellaneous Expenses,40200,Miscellaneous Expenses,5034,6 microwaves for Strawberry Fields Digital Hub. Samsung 800W 23L Standard Microwave MS23K3513AK - Black. 89.00 each,25/01/2019,135307,445.02,Revenue,AO Retail Limited,77790
Chorley Borough Council,http://statistics.data.gov.uk/id/local-authority/30UE,Unapportionable Central OHeads,1009,Chief Executive,Miscellaneous Expenses,40200,Miscellaneous Expenses,5034,Events Cancellation - Santa Express - 01/12/2018 - 23/12/2018,04/01/2019,134207,380.80,Revenue,Aon UK Limited Accounts Division,76559
Chorley Borough Council,http://statistics.data.gov.uk/id/local-authority/30UE,Unapportionable Central OHeads,1009,Chief Executive,Miscellaneous Expenses,40200,Miscellaneous Expenses,5034,Events Cancellation Insurance - Winter Wonderland - 07/12/2018 - 06/01/2019,04/01/2019,134208,672.00,Revenue,Aon UK Limited Accounts Division,76559
Chorley Borough Council,http://statistics.data.gov.uk/id/local-authority/30UE,Corporate Management,1008,Chief Executive,Employee Related Insurance,18003,Indirect Employee Expenses,5002,"CBC - AON Insurance Renewal policies including General Property and Business Interruption, Crime, Fine Arts, Motor Fleet,",30/01/2019,135375,"159,153.39",Revenue,Aon UK Limited Accounts Division,76559
Chorley Borough Council,http://statistics.data.gov.uk/id/local-authority/30UE,Control Accounts,Control,Policy & Governance,Manual Control Account,1,Balance Sheet,Balance,Refunded to Collection Account 10/12/2018 see note attached,04/01/2019,CRREF83,"3,677.34",Revenue,Aon UK Limited Accounts Division,76559
Chorley Borough Council,http://statistics.data.gov.uk/id/local-authority/30UE,Planning Policy,1092,Business Development & Growth,Professional Fees,40063,Services,5027,Commission of a Gypsy and Traveller Accommodation Assessment for developing Central Lancashire Local Plan.,09/01/2019,134759,"3,644.73",Revenue,Arc4,60831
Chorley Borough Council,http://statistics.data.gov.uk/id/local-authority/30UE,Corporate Management,1008,Policy & Governance,Exhibitions & Special Events,40158,Miscellaneous Expenses,5034,Activities in Market walk every Saturday in December,04/01/2019,134841,995.00,Revenue,ARTventurers Preston Chorley and Leyland,76837
Chorley Borough Council,http://statistics.data.gov.uk/id/local-authority/30UE,Service Management & Support,1009,Customer & Digital,Vehicles and Plant Maintenance,30045,Direct Transport Costs,5016,"13 x Grease nipples � straight. (F06SGN), 4 X �O� Rings (R218OR) ,4 X Bush (B403232T) Still metal,1 X Pin (PN41M)",16/01/2019,134563,596.40,Revenue,Balmers Garden Machinery,17075
Chorley Borough Council,http://statistics.data.gov.uk/id/local-authority/30UE,Control Accounts,Control,Policy & Governance,General Balances,100,Balance Sheet,Balance,28-Oct-18,04/01/2019,133820,"8,063.19",Revenue,Barclaycard Commercial,59848
Chorley Borough Council,http://statistics.data.gov.uk/id/local-authority/30UE,Control Accounts,Control,Policy & Governance,General Balances,100,Balance Sheet,Balance,,04/01/2019,133891,"5,596.30",Revenue,Barclaycard Commercial,59848
Chorley Borough Council,http://statistics.data.gov.uk/id/local-authority/30UE,Corporate Management,1008,Policy & Governance,Bank Charges,40151,Miscellaneous Expenses,5034,,04/01/2019,133859,15.00,Revenue,Barclaycard Merchant Services,61601
Chorley Borough Council,http://statistics.data.gov.uk/id/local-authority/30UE,Corporate Management,1008,Policy & Governance,Bank Charges,40151,Miscellaneous Expenses,5034,,04/01/2019,133859,"1,197.04",Revenue,Barclaycard Merchant Services,61601
Chorley Borough Council,http://statistics.data.gov.uk/id/local-authority/30UE,Corporate Management,1008,Policy & Governance,Bank Charges,40151,Miscellaneous Expenses,5034,,04/01/2019,133861,15.00,Revenue,Barclaycard Merchant Services,61601
Chorley Borough Council,http://statistics.data.gov.uk/id/local-authority/30UE,Corporate Management,1008,Policy & Governance,Bank Charges,40151,Miscellaneous Expenses,5034,,04/01/2019,133861,682.58,Revenue,Barclaycard Merchant Services,61601
Chorley Borough Council,http://statistics.data.gov.uk/id/local-authority/30UE,Corporate Management,1008,Policy & Governance,Bank Charges,40151,Miscellaneous Expenses,5034,,04/01/2019,134469,15.00,Revenue,Barclaycard Merchant Services,61601
Chorley Borough Council,http://statistics.data.gov.uk/id/local-authority/30UE,Corporate Management,1008,Policy & Governance,Bank Charges,40151,Miscellaneous Expenses,5034,,04/01/2019,134469,781.47,Revenue,Barclaycard Merchant Services,61601
Chorley Borough Council,http://statistics.data.gov.uk/id/local-authority/30UE,Corporate Management,1008,Policy & Governance,Bank Charges,40151,Miscellaneous Expenses,5034,30-Nov-18,04/01/2019,134470,"1,299.31",Revenue,Barclaycard Merchant Services,61601
Chorley Borough Council,http://statistics.data.gov.uk/id/local-authority/30UE,Corporate Management,1008,Policy & Governance,Bank Charges,40151,Miscellaneous Expenses,5034,30-Nov-18,04/01/2019,134470,15.00,Revenue,Barclaycard Merchant Services,61601
Chorley Borough Council,http://statistics.data.gov.uk/id/local-authority/30UE,Unapportionable Central OHeads,1009,Policy & Governance,Exhibitions & Special Events,40158,Miscellaneous Expenses,5034,Tipi Provision for WW,09/01/2019,134940,"1,000.00",Revenue,Bettys Tipi Ltd,77725
Chorley Borough Council,http://statistics.data.gov.uk/id/local-authority/30UE,Business Support,1095,Business Development & Growth,Miscellaneous Expenses,40200,Miscellaneous Expenses,5034,Open Reach Commercial Newsites at Euxton Lane,18/01/2019,135146,"1,056.48",Revenue,British Telecom,17189
Chorley Borough Council,http://statistics.data.gov.uk/id/local-authority/30UE,Central Support Services,1009,Customer & Digital,Telephones - Rentals,40083,Communication and Computing,5028,recurring,30/01/2019,135413,"3,879.68",Revenue,British Telecommunications Plc,17131
Chorley Borough Council,http://statistics.data.gov.uk/id/local-authority/30UE,Central Support Services,1009,Customer & Digital,Telephones - Calls,40084,Communication and Computing,5028,use,30/01/2019,135413,289.58,Revenue,British Telecommunications Plc,17131
Chorley Borough Council,http://statistics.data.gov.uk/id/local-authority/30UE,Central Support Services,1009,Customer & Digital,Telephones - Other,40085,Communication and Computing,5028,one off,30/01/2019,135413,8.50,Revenue,British Telecommunications Plc,17131
Chorley Borough Council,http://statistics.data.gov.uk/id/local-authority/30UE,Central Support Services,1009,Customer & Digital,Telephones - Rentals,40083,Communication and Computing,5028,CCTV,16/01/2019,135035,"2,126.88",Revenue,BT Redcare,21115
Chorley Borough Council,http://statistics.data.gov.uk/id/local-authority/30UE,Service Management & Support,1009,Customer & Digital,Hire Of Vehicles and Plant,30028,Contrct Hire & Operating Lease,5018,"Hire price of 395 per week per machine. 2 machines for 6 weeks;1 machine for 14 weeks,Delivery cost of 125 per machine",09/01/2019,134772,"1,580.00",Revenue,Bunce (Ashbury) Ltd,77672
Chorley Borough Council,http://statistics.data.gov.uk/id/local-authority/30UE,Business Support,1095,Chief Executive,Miscellaneous Expenses,40200,Miscellaneous Expenses,5034,1 x Business Cloud Sponsorship Package - Lancashire Untold Digital Story,09/01/2019,134461,"1,500.00",Revenue,Business Cloud,77733
Chorley Borough Council,http://statistics.data.gov.uk/id/local-authority/30UE,Service Management & Support,1009,Customer & Digital,Supplies-Grounds Maintenance,40025,"Equipment, Furniture & Materia",5023,"Emptying of interceptor tanks and jetting drains at Bengal St Depot, to comply with EA Licence conditions (12 visits per year)",16/01/2019,134300,325.00,Revenue,NAME REDACTED,16579
Chorley Borough Council,http://statistics.data.gov.uk/id/local-authority/30UE,Service Management & Support,1009,Customer & Digital,Supplies-Grounds Maintenance,40025,"Equipment, Furniture & Materia",5023,"Emptying of interceptor tanks and jetting drains at Bengal St Depot, to comply with EA Licence conditions (12 visits per year)",16/01/2019,134834,325.00,Revenue,NAME REDACTED,16579
Chorley Borough Council,http://statistics.data.gov.uk/id/local-authority/30UE,Service Management & Support,1009,Customer & Digital,Vehicles and Plant Maintenance,30045,Direct Transport Costs,5016,"As per job number 0259MOT and Service for PN66 RCU",18/01/2019,135120,"1,850.84",Revenue,C P Davidson & Sons Ltd,21093
Chorley Borough Council,http://statistics.data.gov.uk/id/local-authority/30UE,Service Management & Support,1009,Customer & Digital,Vehicles and Plant Maintenance,30045,Direct Transport Costs,5016,As per job number 0259,18/01/2019,135120,91.00,Revenue,C P Davidson & Sons Ltd,21093
Chorley Borough Council,http://statistics.data.gov.uk/id/local-authority/30UE,Unapportionable Central OHeads,1009,Customer & Digital,Emergency Call Out System,40096,Communication and Computing,5028,Out of hours call charges September 2018,11/01/2019,134914,329.16,Revenue,CallCare Ltd,20257
Chorley Borough Council,http://statistics.data.gov.uk/id/local-authority/30UE,Central Support Services,1009,Customer & Digital,Miscellaneous Expenses,40200,Miscellaneous Expenses,5034,GB-505918-oks,09/01/2019,134826,"1,792.96",Revenue,Canon (UK) Ltd,17492
Chorley Borough Council,http://statistics.data.gov.uk/id/local-authority/30UE,Central Support Services,1009,Customer & Digital,Miscellaneous Expenses,40200,Miscellaneous Expenses,5034,GB-506449-oks,09/01/2019,134826,108.81,Revenue,Canon (UK) Ltd,17492
Chorley Borough Council,http://statistics.data.gov.uk/id/local-authority/30UE,Central Support Services,1009,Customer & Digital,Computer - Support Services,40111,Communication and Computing,5028,Ground Level Surveys,16/01/2019,133206,941.63,Revenue,CCTV Services Limited,71330
Chorley Borough Council,http://statistics.data.gov.uk/id/local-authority/30UE,Central Support Services,1009,Customer & Digital,Computer - Support Services,40111,Communication and Computing,5028,Budgetary Pricing,16/01/2019,133206,279.00,Revenue,CCTV Services Limited,71330
Chorley Borough Council,http://statistics.data.gov.uk/id/local-authority/30UE,Central Support Services,1009,Customer & Digital,Computer - Support Services,40111,Communication and Computing,5028,Tatton/Harpers line-of-sight,16/01/2019,133206,"1,894.88",Revenue,CCTV Services Limited,71330
Chorley Borough Council,http://statistics.data.gov.uk/id/local-authority/30UE,Central Support Services,1009,Customer & Digital,Computer - Support Services,40111,Communication and Computing,5028,Friday Street carp park spec,16/01/2019,133206,279.00,Revenue,CCTV Services Limited,71330
Chorley Borough Council,http://statistics.data.gov.uk/id/local-authority/30UE,Central Support Services,1009,Customer & Digital,Computer - Support Services,40111,Communication and Computing,5028,Production of unified spec,16/01/2019,133206,558.00,Revenue,CCTV Services Limited,71330
Chorley Borough Council,http://statistics.data.gov.uk/id/local-authority/30UE,Central Support Services,1009,Customer & Digital,Computer - Support Services,40111,Communication and Computing,5028,Duct Survey,16/01/2019,133206,"5,517.23",Revenue,CCTV Services Limited,71330
Chorley Borough Council,http://statistics.data.gov.uk/id/local-authority/30UE,Democratic Represent and  Mgnt,1007,Policy & Governance,Exhibitions,40176,Miscellaneous Expenses,5034,Transport of the 2018 British Wildlife Photography Awards exhibition from Astley Hal to Stockwood Discovery Centre,09/01/2019,134953,265.00,Revenue,Chell Deliveries,75926
Chorley Borough Council,http://statistics.data.gov.uk/id/local-authority/30UE,Corporate Management,1008,Early Intervention,Taxi Testing & Vehicle Safety Report,40234,Services,5027,MOT,16/01/2019,134975,"1,097.00",Revenue,Chorley Autocare Ltd,17110
Chorley Borough Council,http://statistics.data.gov.uk/id/local-authority/30UE,Corporate Management,1008,Early Intervention,Taxi Testing & Vehicle Safety Report,40234,Services,5027,Tax Test,16/01/2019,134975,171.00,Revenue,Chorley Autocare Ltd,17110
Chorley Borough Council,http://statistics.data.gov.uk/id/local-authority/30UE,Regulatory Services,1048,Early Intervention,Taxi Testing & Vehicle Safety Report,40234,Services,5027,November MOT`s,16/01/2019,135103,"1,700.35",Revenue,Chorley Autocare Ltd,17110
Chorley Borough Council,http://statistics.data.gov.uk/id/local-authority/30UE,Corporate Management,1008,Early Intervention,Taxi Testing & Vehicle Safety Report,40234,Services,5027,November TAX test,16/01/2019,135103,265.05,Revenue,Chorley Autocare Ltd,17110
Chorley Borough Council,http://statistics.data.gov.uk/id/local-authority/30UE,Central Support Services,1009,Business Development & Growth,Training Course Fees,17010,Indirect Employee Expenses,5002,Planning and delivery of Literacy Basics course,16/01/2019,134977,750.00,Revenue,Christine Edwards,77601
Chorley Borough Council,http://statistics.data.gov.uk/id/local-authority/30UE,Democratic Represent and  Mgnt,1007,Policy & Governance,Burglar Alarms & Security Systems,20075,Fixtures and Fittings,5010,"Account number REDACTED,Contract number REDACTED,,Astley Coach House Chubb Monitoring Fire Service",02/01/2019,134762,437.60,Revenue,Chubb Electronic Sec Sys Ltd,16228
Chorley Borough Council,http://statistics.data.gov.uk/id/local-authority/30UE,Democratic Represent and  Mgnt,1007,Policy & Governance,Burglar Alarms & Security Systems,20075,Fixtures and Fittings,5010,"Account number REDACTED,Contract number REDACTED, Astley Farm House,Fire alarm service engineer`s visit ",09/01/2019,134887,405.41,Revenue,Chubb Electronic Sec Sys Ltd,16228
Chorley Borough Council,http://statistics.data.gov.uk/id/local-authority/30UE,Unapportionable Central OHeads,1009,Policy & Governance,Computer Software-Additional,40102,Communication and Computing,5028,"GDPR readiness module including Anonymisation of the test system,Subject Access report and Right of Erasure",16/01/2019,134911,397.71,Revenue,Civica UK Limited,17463
Chorley Borough Council,http://statistics.data.gov.uk/id/local-authority/30UE,Central Support Services,1009,Customer & Digital,Computer Equipment - Security,40106,Communication and Computing,5028,Civica - Whitelisting  IP Address for access to FTP,11/01/2019,134999,612.50,Revenue,Civica UK Limited,17463
Chorley Borough Council,http://statistics.data.gov.uk/id/local-authority/30UE,Unapportionable Central OHeads,1009,Business Development & Growth,General Repairs - Reactive,20004,Repairs Maintenance & Alts,5005,Reactive blanket order from Jan 2019,25/01/2019,135298,329.36,Revenue,Classic Lifts Limited,20897
Chorley Borough Council,http://statistics.data.gov.uk/id/local-authority/30UE,Unapportionable Central OHeads,1009,Business Development & Growth,General Repairs - Reactive,20004,Repairs Maintenance & Alts,5005,Reactive blanket order from Jan 2019,25/01/2019,135299,"1,297.83",Revenue,Classic Lifts Limited,20897
Chorley Borough Council,http://statistics.data.gov.uk/id/local-authority/30UE,Central Support Services,1009,Customer & Digital,Computer Equipment-Purchase,40098,Communication and Computing,5028,Installation of CCTV pole at previously agreed location on Cleveland Street. Pole to INCLUDE ARM FOR CCTV CAMERA,09/01/2019,133500,"3,254.44",Revenue,Core Integrated Solutions,77043
Chorley Borough Council,http://statistics.data.gov.uk/id/local-authority/30UE,Central Support Services,1009,Customer & Digital,Computer Equipment-Purchase,40098,Communication and Computing,5028,Installation of CCTV pole at previously agreed location on Cleveland Street. Pole to INCLUDE ARM FOR CCTV CAMERA,09/01/2019,134023,"3,557.43",Revenue,Core Integrated Solutions,77043
Chorley Borough Council,http://statistics.data.gov.uk/id/local-authority/30UE,Unapportionable Central OHeads,1009,Business Development & Growth,General Repairs - Reactive,20004,Repairs Maintenance & Alts,5005,Blanket reactive order,09/01/2019,133938,659.50,Revenue,Corlett Electrical Eng Co Ltd,16271
Chorley Borough Council,http://statistics.data.gov.uk/id/local-authority/30UE,Unapportionable Central OHeads,1009,Business Development & Growth,Planned Maintenance,20006,Repairs Maintenance & Alts,5005,Blanket PPM Dec 2018 onwards,09/01/2019,134668,"3,953.90",Revenue,Corlett Electrical Eng Co Ltd,16271
Chorley Borough Council,http://statistics.data.gov.uk/id/local-authority/30UE,Economic Development,1096,Business Development & Growth,Fixtures & Fittings - Purchase,20027,Fixtures and Fittings,5010,Chorley Market. Upgrading of lighting to LED from entrance where toilets are and up to Tyrer`s Fruit & Veg Stall.,09/01/2019,134780,"2,237.15",Revenue,Corlett Electrical Eng Co Ltd,16271
Chorley Borough Council,http://statistics.data.gov.uk/id/local-authority/30UE,Central Support Services,1009,Business Development & Growth,Miscellaneous Expenses,40200,Miscellaneous Expenses,5034,16A power supply to IT Hub above Iceland,16/01/2019,135056,"1,396.50",Revenue,Corlett Electrical Eng Co Ltd,16271
Chorley Borough Council,http://statistics.data.gov.uk/id/local-authority/30UE,Unapportionable Central OHeads,1009,Business Development & Growth,General Repairs - Reactive,20004,Repairs Maintenance & Alts,5005,Blanket reactive order,16/01/2019,135061,"2,090.00",Revenue,Corlett Electrical Eng Co Ltd,16271
Chorley Borough Council,http://statistics.data.gov.uk/id/local-authority/30UE,Unapportionable Central OHeads,1009,Business Development & Growth,General Repairs - Reactive,20004,Repairs Maintenance & Alts,5005,Blanket reactive order,16/01/2019,135068,290.35,Revenue,Corlett Electrical Eng Co Ltd,16271
Chorley Borough Council,http://statistics.data.gov.uk/id/local-authority/30UE,Economic Development,1096,Business Development & Growth,Tools & Equipment - Maintenance,40005,"Equipment, Furniture & Materia",5023,"In the high level enclosure adjacent to the Chorley market entrance, update power supply complete with RCD protection. ",18/01/2019,135184,456.50,Revenue,Corlett Electrical Eng Co Ltd,16271
Chorley Borough Council,http://statistics.data.gov.uk/id/local-authority/30UE,Economic Development,1096,Business Development & Growth,Fixtures & Fittings - Purchase,20027,Fixtures and Fittings,5010,Upgrade of market lighting to two runs of 50 x 50 lighting trunking down each side.,23/01/2019,135195,"3,200.00",Revenue,Corlett Electrical Eng Co Ltd,16271
Chorley Borough Council,http://statistics.data.gov.uk/id/local-authority/30UE,Economic Development,1096,Business Development & Growth,Fixtures & Fittings - Purchase,20027,Fixtures and Fittings,5010,To supply and install 32 fittings (16 down each side) We have not allowed for any emergency fittings,23/01/2019,135195,"4,800.00",Revenue,Corlett Electrical Eng Co Ltd,16271
Chorley Borough Council,http://statistics.data.gov.uk/id/local-authority/30UE,Business Support,1095,Business Development & Growth,Gas,20014,Energy Costs,5006,dec18 to Jan 18,23/01/2019,135117,270.00,Revenue,Corona Energy Retail 2 Ltd,67249
Chorley Borough Council,http://statistics.data.gov.uk/id/local-authority/30UE,Recreation & Sport,1037,Business Development & Growth,Gas,20014,Energy Costs,5006,Dec 18 - Jan 19,23/01/2019,135288,403.74,Revenue,Corona Energy Retail 2 Ltd,67249
Chorley Borough Council,http://statistics.data.gov.uk/id/local-authority/30UE,Democratic Represent and  Mgnt,1007,Business Development & Growth,Gas,20014,Energy Costs,5006,Dec 18 to Jan 19,30/01/2019,135347,561.16,Revenue,Corona Energy Retail 2 Ltd,67249
Chorley Borough Council,http://statistics.data.gov.uk/id/local-authority/30UE,Unapportionable Central OHeads,1009,Business Development & Growth,Gas,20014,Energy Costs,5006,Dec 18 - Jan 19,30/01/2019,135351,"1,126.72",Revenue,Corona Energy Retail 2 Ltd,67249
Chorley Borough Council,http://statistics.data.gov.uk/id/local-authority/30UE,Unapportionable Central OHeads,1009,Business Development & Growth,Gas,20014,Energy Costs,5006,Dec 18 - Jan 19,30/01/2019,135352,761.59,Revenue,Corona Energy Retail 2 Ltd,67249
Chorley Borough Council,http://statistics.data.gov.uk/id/local-authority/30UE,Democratic Represent and  Mgnt,1007,Business Development & Growth,Gas,20014,Energy Costs,5006,Dec 18 - Jan 19,30/01/2019,135353,391.61,Revenue,Corona Energy Retail 2 Ltd,67249
Chorley Borough Council,http://statistics.data.gov.uk/id/local-authority/30UE,Democratic Represent and  Mgnt,1007,Business Development & Growth,Gas,20014,Energy Costs,5006,Dec 18 - Jan 19,30/01/2019,135354,953.20,Revenue,Corona Energy Retail 2 Ltd,67249
Chorley Borough Council,http://statistics.data.gov.uk/id/local-authority/30UE,Homelessness,1075,Business Development & Growth,Gas,20014,Energy Costs,5006,Dec 18 - Jan 19,30/01/2019,135363,989.62,Revenue,Corona Energy Retail 2 Ltd,67249
Chorley Borough Council,http://statistics.data.gov.uk/id/local-authority/30UE,Unapportionable Central OHeads,1009,Business Development & Growth,General Subscriptions,40146,Grants and Subscriptions,5031,Annual subscription to valuation data resource,09/01/2019,134814,"3,180.00",Revenue,CoStar UK Limited,67985
Chorley Borough Council,http://statistics.data.gov.uk/id/local-authority/30UE,Business Support,1095,Business Development & Growth,Miscellaneous Expenses,40200,Miscellaneous Expenses,5034,Professional Design Fees - Digital Office Hub project,09/01/2019,134169,"2,800.00",Revenue,Curtins Consulting Engineers,20049
Chorley Borough Council,http://statistics.data.gov.uk/id/local-authority/30UE,Service Management & Support,1009,Customer & Digital,Supplies-Grounds Maintenance,40025,"Equipment, Furniture & Materia",5023,1 - Balmoral Bench 1.8m KD,11/01/2019,135010,307.08,Revenue,Cyan t/a Lindsey,61782
Chorley Borough Council,http://statistics.data.gov.uk/id/local-authority/30UE,Democratic Represent and  Mgnt,1007,Policy & Governance,Tools & Equipment - Purchase,40003,"Equipment, Furniture & Materia",5023,10 x Black Ivy Leaf Tablecloths. Size 90`` x 108`` @ 27.58,23/01/2019,135104,275.80,Revenue,Direct Linen Textiles International Ltd,65206
Chorley Borough Council,http://statistics.data.gov.uk/id/local-authority/30UE,Democratic Represent and  Mgnt,1007,Policy & Governance,Tools & Equipment - Purchase,40003,"Equipment, Furniture & Materia",5023,2 x White Ivy Leaf Tablecloths. Size 90`` x 108`` @ 34.48,23/01/2019,135104,68.96,Revenue,Direct Linen Textiles International Ltd,65206
Chorley Borough Council,http://statistics.data.gov.uk/id/local-authority/30UE,Democratic Represent and  Mgnt,1007,Policy & Governance,Tools & Equipment - Purchase,40003,"Equipment, Furniture & Materia",5023,Shipping,23/01/2019,135104,8.50,Revenue,Direct Linen Textiles International Ltd,65206
Chorley Borough Council,http://statistics.data.gov.uk/id/local-authority/30UE,Economic Development,1096,Business Development & Growth,Publicity - Advertising,40157,Miscellaneous Expenses,5034,2019 Yearbook � Regional Listing � North West,16/01/2019,135131,450.00,Revenue,Diversified Business Communications UK,68712
Chorley Borough Council,http://statistics.data.gov.uk/id/local-authority/30UE,Central Support Services,1009,Customer & Digital,Mobile Voice and Data,40086,Communication and Computing,5028,,16/01/2019,135092,"1,562.88",Revenue,EE - Orange,16486
Chorley Borough Council,http://statistics.data.gov.uk/id/local-authority/30UE,Central Support Services,1009,Customer & Digital,Mobile Voice and Data,40086,Communication and Computing,5028,EE phone equipment/bills,23/01/2019,135093,"7,398.00",Revenue,EE - Orange,16486
Chorley Borough Council,http://statistics.data.gov.uk/id/local-authority/30UE,Central Support Services,1009,Customer & Digital,Mobile Voice and Data,40086,Communication and Computing,5028,,16/01/2019,135028,"1,484.01",Revenue,EE LIMITED,63366
Chorley Borough Council,http://statistics.data.gov.uk/id/local-authority/30UE,Central Support Services,1009,Business Development & Growth,Consultants` Fees,40077,Services,5027,Fees for Chorley Economic Strategy,30/01/2019,135373,"4,000.00",Revenue,EKOSGEN,71520
Chorley Borough Council,http://statistics.data.gov.uk/id/local-authority/30UE,Unapportionable Central OHeads,1009,Business Development & Growth,General Repairs - Reactive,20004,Repairs Maintenance & Alts,5005,Blanket Reactive from Dec 2018,16/01/2019,135045,336.00,Revenue,Ellesmere Engineering Co Ltd,17520
Chorley Borough Council,http://statistics.data.gov.uk/id/local-authority/30UE,Unapportionable Central OHeads,1009,Business Development & Growth,General Repairs - Reactive,20004,Repairs Maintenance & Alts,5005,Blanket Reactive from Dec 2018,16/01/2019,135046,538.70,Revenue,Ellesmere Engineering Co Ltd,17520
Chorley Borough Council,http://statistics.data.gov.uk/id/local-authority/30UE,Unapportionable Central OHeads,1009,Business Development & Growth,Planned Maintenance,20006,Repairs Maintenance & Alts,5005,Blanket order for PPM works,16/01/2019,135047,"5,356.00",Revenue,Ellesmere Engineering Co Ltd,17520
Chorley Borough Council,http://statistics.data.gov.uk/id/local-authority/30UE,Capital,Capital,Business Development & Growth,Main Contractor,3007,Capital Expenditure,Capital,Primrose gardens Valuation Statements,23/01/2019,135196,"63,194.64",Capital,Eric Wright Construction Ltd,76464
Chorley Borough Council,http://statistics.data.gov.uk/id/local-authority/30UE,Capital,Capital,Business Development & Growth,Main Contractor,3007,Capital Expenditure,Capital,zeroo rated,23/01/2019,135196,"511,302.07",Capital,Eric Wright Construction Ltd,76464
Chorley Borough Council,http://statistics.data.gov.uk/id/local-authority/30UE,Capital,Capital,Business Development & Growth,Main Contractor,3007,Capital Expenditure,Capital,"Friday Street � Resurfacing, drainage improvements & erection of a decked car park as detailed in EWC cost plan",30/01/2019,135394,"23,747.00",Capital,Eric Wright Construction Ltd,76464
Chorley Borough Council,http://statistics.data.gov.uk/id/local-authority/30UE,Development Control,1091,Customer & Digital,Legal Fees,40171,Miscellaneous Expenses,5034,Expert Opinion - Professional fees,23/01/2019,135122,"5,225.00",Revenue,Eversheds Sutherland (International) LLP,17709
Chorley Borough Council,http://statistics.data.gov.uk/id/local-authority/30UE,Housing Benefit Administration,1077,Customer & Digital,Computer Software-Additional,40102,Communication and Computing,5028,Bank Wizard annual licence for 1st Jan 19 to 31 Dec 19 for Revenues and Benefits service,16/01/2019,135044,"4,006.26",Revenue,Experian Limited,17797
Chorley Borough Council,http://statistics.data.gov.uk/id/local-authority/30UE,Service Management & Support,1009,Customer & Digital,Vehicles and Plant Maintenance,30045,Direct Transport Costs,5016,"120 x Flail blade ,2 x wheel and tire assy, 4 x spacers ,2 x bolt-crg m12 x 170 ,2 x nut-hex m12 ,1 x proximity switch",16/01/2019,134848,514.66,Revenue,F R Sharrock Ltd,18091
Chorley Borough Council,http://statistics.data.gov.uk/id/local-authority/30UE,Service Management & Support,1009,Customer & Digital,Supplies-Grounds Maintenance,40025,"Equipment, Furniture & Materia",5023,Credit note 157802 received but Invoice was not processed,16/01/2019,135123,299.19,Revenue,F R Sharrock Ltd,18091
Chorley Borough Council,http://statistics.data.gov.uk/id/local-authority/30UE,Service Management & Support,1009,Customer & Digital,Vehicles and Plant Maintenance,30045,Direct Transport Costs,5016,as per pro forma invoice carry out service on Case Maxxum tractor SERVICE MACHINE. ,16/01/2019,135125,403.89,Revenue,F R Sharrock Ltd,18091
Chorley Borough Council,http://statistics.data.gov.uk/id/local-authority/30UE,Service Management & Support,1009,Customer & Digital,Vehicles and Plant Maintenance,30045,Direct Transport Costs,5016,"as per pro forma invoice.Repairs carried out to Wessex mower tri- deck ",16/01/2019,135126,"1,636.34",Revenue,F R Sharrock Ltd,18091
Chorley Borough Council,http://statistics.data.gov.uk/id/local-authority/30UE,Service Management & Support,1009,Customer & Digital,Vehicles and Plant Maintenance,30045,Direct Transport Costs,5016,1 x John Deere 3036E steering unit (JD-LVA16170) @ 486.02,23/01/2019,135239,486.02,Revenue,F R Sharrock Ltd,18091
Chorley Borough Council,http://statistics.data.gov.uk/id/local-authority/30UE,Service Management & Support,1009,Customer & Digital,Vehicles and Plant Maintenance,30045,Direct Transport Costs,5016,1 x John Deere 3036E ignition switch (JD-LVU29433) @39.88,23/01/2019,135239,39.88,Revenue,F R Sharrock Ltd,18091
Chorley Borough Council,http://statistics.data.gov.uk/id/local-authority/30UE,Service Management & Support,1009,Customer & Digital,Vehicles and Plant Maintenance,30045,Direct Transport Costs,5016,1 x Kubota RTV 900 ignition switch (KU-k757162102) @ 35.16,23/01/2019,135239,35.16,Revenue,F R Sharrock Ltd,18091
Chorley Borough Council,http://statistics.data.gov.uk/id/local-authority/30UE,Unapportionable Central OHeads,1009,Business Development & Growth,Planned Maintenance,20006,Repairs Maintenance & Alts,5005,Conduct FRA`s at agreed sites,23/01/2019,135006,"4,400.00",Revenue,Fire and Risk Management Support Services Ltd,77505
Chorley Borough Council,http://statistics.data.gov.uk/id/local-authority/30UE,Democratic Represent and  Mgnt,1007,Policy & Governance,Exhibitions & Special Events,40158,Miscellaneous Expenses,5034,Three colour changing lamps and installation at the fountain on pond at Astley Hall.1173.00 for lamps + installation,23/01/2019,135241,"2,098.00",Revenue,Fountains and Features,64754
Chorley Borough Council,http://statistics.data.gov.uk/id/local-authority/30UE,Business Support,1095,Business Development & Growth,Gas,20014,Energy Costs,5006,Gas 29/11/2018 - 31/12/2018,23/01/2019,135150,458.86,Revenue,Gazprom Energy,56502
Chorley Borough Council,http://statistics.data.gov.uk/id/local-authority/30UE,Service Management & Support,1009,Customer & Digital,Vehicles and Plant Maintenance,30045,Direct Transport Costs,5016,2 x Lift arm pivot pins (7J41758740) @25.51each,09/01/2019,134786,45.92,Revenue,Gibsons Garden Machinery Ltd,17550
Chorley Borough Council,http://statistics.data.gov.uk/id/local-authority/30UE,Service Management & Support,1009,Customer & Digital,Vehicles and Plant Maintenance,30045,Direct Transport Costs,5016,1 x near side steering ball joint (3C09162970) @202.84,09/01/2019,134786,182.56,Revenue,Gibsons Garden Machinery Ltd,17550
Chorley Borough Council,http://statistics.data.gov.uk/id/local-authority/30UE,Service Management & Support,1009,Customer & Digital,Vehicles and Plant Maintenance,30045,Direct Transport Costs,5016,1 x Parts manual for Kubota M9960  KU-978P825410 � M9960 - 30each,09/01/2019,134786,30.00,Revenue,Gibsons Garden Machinery Ltd,17550
Chorley Borough Council,http://statistics.data.gov.uk/id/local-authority/30UE,Service Management & Support,1009,Customer & Digital,Vehicles and Plant Maintenance,30045,Direct Transport Costs,5016,1 x  Parts Manual for Kubota front loader  KU-978P832340 � LA1354 - 20,09/01/2019,134786,20.00,Revenue,Gibsons Garden Machinery Ltd,17550
Chorley Borough Council,http://statistics.data.gov.uk/id/local-authority/30UE,Service Management & Support,1009,Customer & Digital,Supplies-Grounds Maintenance,40025,"Equipment, Furniture & Materia",5023,1 x Phoenix Recycled material seat (flat pack),30/01/2019,135321,437.52,Revenue,Glasdon UK Ltd,17505
Chorley Borough Council,http://statistics.data.gov.uk/id/local-authority/30UE,Central Support Services,1009,Early Intervention,Training Allowance,14005,Direct Employee Expenses,5001,2 x places (145.00) on Halal Food Safety Training,02/01/2019,134608,290.00,Revenue,Global EHS,77736
Chorley Borough Council,http://statistics.data.gov.uk/id/local-authority/30UE,Unapportionable Central OHeads,1009,Customer & Digital,External Audit,40064,Services,5027,Housing Benefit Subsidy Claim,09/01/2019,134818,"6,798.00",Revenue,Grant Thornton UK LLP,57322
Chorley Borough Council,http://statistics.data.gov.uk/id/local-authority/30UE,Unapportionable Central OHeads,1009,Policy & Governance,Exhibitions & Special Events,40158,Miscellaneous Expenses,5034,Fuel for Ice Rink,02/01/2019,134773,768.18,Revenue,Harrison Oils Ltd,76429
Chorley Borough Council,http://statistics.data.gov.uk/id/local-authority/30UE,Unapportionable Central OHeads,1009,Policy & Governance,Exhibitions & Special Events,40158,Miscellaneous Expenses,5034,Fuel for Ice Rink,09/01/2019,134825,667.84,Revenue,Harrison Oils Ltd,76429
Chorley Borough Council,http://statistics.data.gov.uk/id/local-authority/30UE,Unapportionable Central OHeads,1009,Policy & Governance,Exhibitions & Special Events,40158,Miscellaneous Expenses,5034,Fuel for Ice Rink,09/01/2019,134835,983.78,Revenue,Harrison Oils Ltd,76429
Chorley Borough Council,http://statistics.data.gov.uk/id/local-authority/30UE,Unapportionable Central OHeads,1009,Policy & Governance,Exhibitions & Special Events,40158,Miscellaneous Expenses,5034,Fuel for Ice Rink,09/01/2019,134836,875.50,Revenue,Harrison Oils Ltd,76429
Chorley Borough Council,http://statistics.data.gov.uk/id/local-authority/30UE,Unapportionable Central OHeads,1009,Policy & Governance,Exhibitions & Special Events,40158,Miscellaneous Expenses,5034,Fuel for Ice Rink,09/01/2019,134870,658.85,Revenue,Harrison Oils Ltd,76429
Chorley Borough Council,http://statistics.data.gov.uk/id/local-authority/30UE,Unapportionable Central OHeads,1009,Policy & Governance,Exhibitions & Special Events,40158,Miscellaneous Expenses,5034,Fuel for Ice Rink,09/01/2019,134939,599.80,Revenue,Harrison Oils Ltd,76429
Chorley Borough Council,http://statistics.data.gov.uk/id/local-authority/30UE,Unapportionable Central OHeads,1009,Policy & Governance,HR Recruitment - Advertising,15300,Indirect Employee Expenses,5002,"Recruitment costs for NAME REDACTED, Interim HR Manager",09/01/2019,134719,"4,045.00",Revenue,Hays Construction & Property,18648
Chorley Borough Council,http://statistics.data.gov.uk/id/local-authority/30UE,Central Support Services,1009,Business Development & Growth,Operational Employees Salaries,10000,Direct Employee Expenses,5001,"NAME REDACTED,Building Surveyor, To cover initially 2 months",16/01/2019,135007,949.75,Revenue,Hays Senior Finance,20078
Chorley Borough Council,http://statistics.data.gov.uk/id/local-authority/30UE,Central Support Services,1009,Business Development & Growth,Operational Employees Salaries,10000,Direct Employee Expenses,5001,NAME REDACTED Building Surveyor. To cover initially 2 months,16/01/2019,135008,982.50,Revenue,Hays Senior Finance,20078
Chorley Borough Council,http://statistics.data.gov.uk/id/local-authority/30UE,Unapportionable Central OHeads,1009,Business Development & Growth,Asset Maintenance Fund,20012,Repairs Maintenance & Alts,5005,Initial decorating works to refugee properties,16/01/2019,134971,"1,390.00",Revenue,Henry Nightingale & Son,17923
Chorley Borough Council,http://statistics.data.gov.uk/id/local-authority/30UE,Capital,Capital,Customer & Digital,Other Capital Grants/Loans,3000,Capital Expenditure,Capital,contribution to bank hall project,16/01/2019,135030,"1,008.74",Capital,Heritage Trust for the North West,77042
Chorley Borough Council,http://statistics.data.gov.uk/id/local-authority/30UE,Democratic Represent and  Mgnt,1007,Policy & Governance,Grants To Other Organisations,40127,Grants and Subscriptions,5031,councillor grant 2018/19,09/01/2019,134952,500.00,Revenue,Home-Start Central Lancashire,77729
Chorley Borough Council,http://statistics.data.gov.uk/id/local-authority/30UE,Capital,Capital,Business Development & Growth,Consultants Fees,3025,Capital Expenditure,Capital,Value Engineering Exercise,09/01/2019,134407,"2,000.00",Capital,Howarth Litchfield Partnership,76440
Chorley Borough Council,http://statistics.data.gov.uk/id/local-authority/30UE,Corporate Management,1008,Policy & Governance,Other Fees,40212,Miscellaneous Expenses,5034,Subsidy for the provision of a meals on wheels service in Chorley from 12/11 to 9/12,02/01/2019,134805,"1,819.29",Revenue,I Care GB Ltd,77247
Chorley Borough Council,http://statistics.data.gov.uk/id/local-authority/30UE,Corporate Management,1008,Policy & Governance,Other Fees,40212,Miscellaneous Expenses,5034,Subsidy for the provision of a meals on wheels service in Chorley from 10 Dec to 6 Jan,25/01/2019,135328,"1,680.25",Revenue,I Care GB Ltd,77247
Chorley Borough Council,http://statistics.data.gov.uk/id/local-authority/30UE,Business Support,1095,Business Development & Growth,Miscellaneous Expenses,40200,Miscellaneous Expenses,5034,Project Management consultancy services for the Digital Office Park project,09/01/2019,134424,"2,075.00",Revenue,Identity Consult Ltd,76426
Chorley Borough Council,http://statistics.data.gov.uk/id/local-authority/30UE,Business Support,1095,Business Development & Growth,Miscellaneous Expenses,40200,Miscellaneous Expenses,5034,Project Management consultancy services for the Digital Office Park project,09/01/2019,134445,"1,800.00",Revenue,Identity Consult Ltd,76426
Chorley Borough Council,http://statistics.data.gov.uk/id/local-authority/30UE,Business Support,1095,Business Development & Growth,Miscellaneous Expenses,40200,Miscellaneous Expenses,5034,Project Management Fees - Digital Office Park (re original contract),11/01/2019,134446,"2,075.00",Revenue,Identity Consult Ltd,76426
Chorley Borough Council,http://statistics.data.gov.uk/id/local-authority/30UE,Business Support,1095,Business Development & Growth,Miscellaneous Expenses,40200,Miscellaneous Expenses,5034,Project Management consultancy services for the Digital Office Park project,11/01/2019,134447,"1,800.00",Revenue,Identity Consult Ltd,76426
Chorley Borough Council,http://statistics.data.gov.uk/id/local-authority/30UE,Business Support,1095,Business Development & Growth,Miscellaneous Expenses,40200,Miscellaneous Expenses,5034,Project Management consultancy services for the Digital Office Park project,11/01/2019,134932,"1,800.00",Revenue,Identity Consult Ltd,76426
Chorley Borough Council,http://statistics.data.gov.uk/id/local-authority/30UE,Elections,1012,Policy & Governance,Service Fees,40056,Services,5027,IVR,09/01/2019,134881,515.17,Revenue,IDOX Software Limited,17542
Chorley Borough Council,http://statistics.data.gov.uk/id/local-authority/30UE,Unapportionable Central OHeads,1009,Policy & Governance,HR Recruitment - Advertising,15300,Indirect Employee Expenses,5002,Advertising on indeed.com for December 2018,16/01/2019,134991,"1,060.00",Revenue,Indeed Ireland Operations Ltd,77703
Chorley Borough Council,http://statistics.data.gov.uk/id/local-authority/30UE,Unapportionable Central OHeads,1009,Business Development & Growth,Planned Maintenance,20006,Repairs Maintenance & Alts,5005,Display energy certificate 2018,23/01/2019,135101,640.00,Revenue,Inprova Energy Ltd,77722
Chorley Borough Council,http://statistics.data.gov.uk/id/local-authority/30UE,Corporate Management,1008,Customer & Digital,Training Allowance,14005,Direct Employee Expenses,5001,National training conference 14.11.18 for NAME REDACTED & NAME REDACTED,30/01/2019,135432,"1,394.00",Revenue,Institute Of Licensing,16987
Chorley Borough Council,http://statistics.data.gov.uk/id/local-authority/30UE,Business Support,1095,Business Development & Growth,Refuse Collection,20037,Cleaning and Domestic Supplies,5012,Waste Compactor Rental Services @ 270.0 per month for 01 April 2018 - 31 March 2019,09/01/2019,134838,270.00,Revenue,J&H Rentals Limited,70699
Chorley Borough Council,http://statistics.data.gov.uk/id/local-authority/30UE,Democratic Represent and  Mgnt,1007,Policy & Governance,Member Development Programme,17007,Indirect Employee Expenses,5002,Licensing act 2003 training - 14 December 2018 - Town hal 1.pm - 5.pm,04/01/2019,134757,763.78,Revenue,James Button and Co,77064
Chorley Borough Council,http://statistics.data.gov.uk/id/local-authority/30UE,Service Management & Support,1009,Customer & Digital,Supplies-Grounds Maintenance,40025,"Equipment, Furniture & Materia",5023,"12 ft Wooden 5 Bar gatePosts, Postcrete,Metal fixings",16/01/2019,134937,273.70,Revenue,John H Mayor & Sons Ltd,16635
Chorley Borough Council,http://statistics.data.gov.uk/id/local-authority/30UE,Development Control,1091,Customer & Digital,Statutory Notices,40160,Miscellaneous Expenses,5034,[part of PO that was GRN`d was used against an other invoice in error,09/01/2019,133161,506.25,Revenue,JPI Media - Johnston Publishing Ltd,20072
Chorley Borough Council,http://statistics.data.gov.uk/id/local-authority/30UE,Development Control,1091,Customer & Digital,Statutory Notices,40160,Miscellaneous Expenses,5034,Planning Public Notices to appear in the Chorley Guardian April 2018 to March 2019,02/01/2019,134462,911.25,Revenue,JPI Media - Johnston Publishing Ltd,20072
Chorley Borough Council,http://statistics.data.gov.uk/id/local-authority/30UE,Development Control,1091,Customer & Digital,Statutory Notices,40160,Miscellaneous Expenses,5034,Planning Public Notices to appear in the Chorley Guardian April 2018 to March 2019,09/01/2019,134793,371.25,Revenue,JPI Media - Johnston Publishing Ltd,20072
Chorley Borough Council,http://statistics.data.gov.uk/id/local-authority/30UE,Development Control,1091,Customer & Digital,Statutory Notices,40160,Miscellaneous Expenses,5034,Planning Public Notices to appear in the Chorley Guardian April 2018 to March 2019,09/01/2019,134920,540.00,Revenue,JPI Media - Johnston Publishing Ltd,20072
Chorley Borough Council,http://statistics.data.gov.uk/id/local-authority/30UE,Development Control,1091,Customer & Digital,Statutory Notices,40160,Miscellaneous Expenses,5034,Planning Public Notices to appear in the Chorley Guardian April 2018 to March 2019,23/01/2019,135168,472.50,Revenue,JPI Media - Johnston Publishing Ltd,20072
Chorley Borough Council,http://statistics.data.gov.uk/id/local-authority/30UE,Capital,Capital,Early Intervention,Grants,3002,Capital Expenditure,Capital,ADDRESS REDACTED,02/01/2019,134766,"2,050.00",Capital,K Berry Ltd,16421
Chorley Borough Council,http://statistics.data.gov.uk/id/local-authority/30UE,Capital,Capital,Early Intervention,Grants,3002,Capital Expenditure,Capital,ADDRESS REDACTED,18/01/2019,135173,"4,027.50",Capital,K Berry Ltd,16421
Chorley Borough Council,http://statistics.data.gov.uk/id/local-authority/30UE,Capital,Capital,Early Intervention,Grants,3002,Capital Expenditure,Capital,ADDRESS REDACTED,18/01/2019,135174,"4,251.50",Capital,K Berry Ltd,16421
Chorley Borough Council,http://statistics.data.gov.uk/id/local-authority/30UE,Capital,Capital,Early Intervention,Grants,3002,Capital Expenditure,Capital,ADDRESS REDACTED,18/01/2019,135175,"3,560.00",Capital,K Berry Ltd,16421
Chorley Borough Council,http://statistics.data.gov.uk/id/local-authority/30UE,Capital,Capital,Early Intervention,Grants,3002,Capital Expenditure,Capital,ADDRESS REDACTED,18/01/2019,135176,"5,605.00",Capital,K Berry Ltd,16421
Chorley Borough Council,http://statistics.data.gov.uk/id/local-authority/30UE,Capital,Capital,Early Intervention,Grants,3002,Capital Expenditure,Capital,ADDRESS REDACTED,18/01/2019,135177,"2,500.00",Capital,K Berry Ltd,16421
Chorley Borough Council,http://statistics.data.gov.uk/id/local-authority/30UE,Capital,Capital,Early Intervention,Grants,3002,Capital Expenditure,Capital,ADDRESS REDACTED,18/01/2019,135178,"8,890.00",Capital,K Berry Ltd,16421
Chorley Borough Council,http://statistics.data.gov.uk/id/local-authority/30UE,Capital,Capital,Early Intervention,Grants,3002,Capital Expenditure,Capital,ADDRESS REDACTED,18/01/2019,135179,"6,180.00",Capital,K Berry Ltd,16421
Chorley Borough Council,http://statistics.data.gov.uk/id/local-authority/30UE,Economic Development,1096,Business Development & Growth,Christmas Lights,40179,Miscellaneous Expenses,5034,"To Supply and Install  4 off LED long throw Projectors inc onsite programming& gobos. 2 Pole Mounts&2 Pole top features ",18/01/2019,135171,"13,190.00",Revenue,KD Decoratives Ltd,77765
Chorley Borough Council,http://statistics.data.gov.uk/id/local-authority/30UE,Homelessness,1075,Early Intervention,External Contractor,40198,Miscellaneous Expenses,5034,PROVISION OF YOUNG PERSONS HOUSING DROP IN Q3 Oct 2018 - Dec 2018,09/01/2019,132783,"3,750.00",Revenue,Key,61252
Chorley Borough Council,http://statistics.data.gov.uk/id/local-authority/30UE,Service Management & Support,1009,Customer & Digital,Supplies-Grounds Maintenance,40025,"Equipment, Furniture & Materia",5023,"SF85 Victor Boot  @ 28.74each -various sizes and quantities:",04/01/2019,134792,258.66,Revenue,Key Engineering & Hygene Supplies,51615
Chorley Borough Council,http://statistics.data.gov.uk/id/local-authority/30UE,Control Accounts,Control,Policy & Governance,General Balances,100,Balance Sheet,Balance,Monthly Deductions from Expenses,23/01/2019,135281,"1,243.30",Revenue,Labour Councillors Association,17577
Chorley Borough Council,http://statistics.data.gov.uk/id/local-authority/30UE,Precepts and Collection Fund,Precepts,Policy & Governance,LCC Precept,2009,Precepts & Collection Fund,Precept,LCC Council Tax Precept,04/01/2019,134170,"4,777,174.00",Revenue,Lancashire County Council,18386
Chorley Borough Council,http://statistics.data.gov.uk/id/local-authority/30UE,Collection Fund Revenue Accoun,,Policy & Governance,NNDR County Share,2036,Precepts & Collection Fund,Precept,LCC Business Rates Precepts,04/01/2019,134170,"208,361.00",Revenue,Lancashire County Council,18386
Chorley Borough Council,http://statistics.data.gov.uk/id/local-authority/30UE,Parking Services,1066,Business Development & Growth,Miscellaneous Expenses,40200,Miscellaneous Expenses,5034,"Car Park Lighting Repairs,Hallgate - Replaced 7 Floodlight(damaged beyond repair) incl Labour",18/01/2019,135169,558.18,Revenue,Lancashire County Council,20027
Chorley Borough Council,http://statistics.data.gov.uk/id/local-authority/30UE,Parking Services,1066,Business Development & Growth,Miscellaneous Expenses,40200,Miscellaneous Expenses,5034,"Water Street: Materials100w Son-t lamps & 100w zeb-c ballast",18/01/2019,135169,381.44,Revenue,Lancashire County Council,20027
Chorley Borough Council,http://statistics.data.gov.uk/id/local-authority/30UE,Parking Services,1066,Business Development & Growth,Miscellaneous Expenses,40200,Miscellaneous Expenses,5034,"Queens Road:Materials - 250w zeb-c ballast,250w Son-t lamp 100-400w Ignitor,250w zeb-c ballast,100-400w Ignitor",18/01/2019,135169,484.76,Revenue,Lancashire County Council,20027
Chorley Borough Council,http://statistics.data.gov.uk/id/local-authority/30UE,Parking Services,1066,Business Development & Growth,Miscellaneous Expenses,40200,Miscellaneous Expenses,5034,"Fleet Street:Materials -250w son-t lamp,100-400w Ignitor Labour: 32.50",18/01/2019,135169,72.27,Revenue,Lancashire County Council,20027
Chorley Borough Council,http://statistics.data.gov.uk/id/local-authority/30UE,Parking Services,1066,Business Development & Growth,Miscellaneous Expenses,40200,Miscellaneous Expenses,5034,"Portland Street:Materials -250w zeb-c ballast ,250w son-t lamp ,Labour Two electricians 65.00",18/01/2019,135169,207.06,Revenue,Lancashire County Council,20027
Chorley Borough Council,http://statistics.data.gov.uk/id/local-authority/30UE,Corporate Management,1008,Customer & Digital,Clinical Waste Collection,50007,Private Contractors,5042,"Disposal of clinical waste from Chorley household. April 2018 to March 2019. Yellow bag collections, approx. 500 per  month.",09/01/2019,134896,693.88,Revenue,Lancashire Teaching Hospitals NHS FT,19003
Chorley Borough Council,http://statistics.data.gov.uk/id/local-authority/30UE,Private Sector HSG Renewal,1073,Early Intervention,External Contractor,40198,Miscellaneous Expenses,5034,Provision of Energy Switching Support Service in November & December 2018,02/01/2019,134771,687.09,Revenue,Lancashire West Citizens Advice Bureaux,17035
Chorley Borough Council,http://statistics.data.gov.uk/id/local-authority/30UE,Private Sector HSG Renewal,1073,Early Intervention,External Contractor,40198,Miscellaneous Expenses,5034,"Provision of Energy Switching Support Service during October 2018, funded by LCC Integrated Home Improvement Service funds.",09/01/2019,134877,725.23,Revenue,Lancashire West Citizens Advice Bureaux,17035
Chorley Borough Council,http://statistics.data.gov.uk/id/local-authority/30UE,Private Sector HSG Renewal,1073,Early Intervention,External Contractor,40198,Miscellaneous Expenses,5034,Provision of Energy Switching Support Service in September 2018,09/01/2019,134878,390.00,Revenue,Lancashire West Citizens Advice Bureaux,17035
Chorley Borough Council,http://statistics.data.gov.uk/id/local-authority/30UE,Private Sector HSG Renewal,1073,Early Intervention,External Contractor,40198,Miscellaneous Expenses,5034,energy switching advise service,09/01/2019,134878,55.68,Revenue,Lancashire West Citizens Advice Bureaux,17035
Chorley Borough Council,http://statistics.data.gov.uk/id/local-authority/30UE,Community Development,1097,Policy & Governance,Citizens Advice Bureau,40125,Grants and Subscriptions,5031,Provision of Support for Advice Services in Chorley during 2018/19,18/01/2019,135031,"18,933.00",Revenue,Lancashire West Citizens Advice Bureaux,17035
Chorley Borough Council,http://statistics.data.gov.uk/id/local-authority/30UE,Precepts and Collection Fund,Precepts,Policy & Governance,LCFA Precept,2011,Precepts & Collection Fund,Precept,LCFA Council Tax Precept,04/01/2019,134171,"248,922.00",Revenue,Lancs Combined Fire Authority,17768
Chorley Borough Council,http://statistics.data.gov.uk/id/local-authority/30UE,Collection Fund Revenue Accoun,,Policy & Governance,NNDR Fire Share,2037,Precepts & Collection Fund,Precept,LCFA Business Rates Precepts,04/01/2019,134171,"23,151.00",Revenue,Lancs Combined Fire Authority,17768
Chorley Borough Council,http://statistics.data.gov.uk/id/local-authority/30UE,Capital,Capital,Business Development & Growth,Main Contractor,3007,Capital Expenditure,Capital,"FAO To Relay Resigrip, 840 square metres @ 20.50 as quoted�.Works to be completed by 26th October.Net Value 17220 ",16/01/2019,135020,"18,019.50",Capital,Landscape Engineering Ltd,54727
Chorley Borough Council,http://statistics.data.gov.uk/id/local-authority/30UE,Unapportionable Central OHeads,1009,Policy & Governance,HR Recruitment - Advertising,15300,Indirect Employee Expenses,5002,Recruitment costs for Jennie Myers,23/01/2019,135167,"1,502.40",Revenue,Laura Hartley Recruitment,77798
Chorley Borough Council,http://statistics.data.gov.uk/id/local-authority/30UE,Unapportionable Central OHeads,1009,Policy & Governance,Car Leasing Payment,14100,Direct Employee Expenses,5001,Early Termination,04/01/2019,133778,"1,340.20",Revenue,LeasePlan UK Ltd T/A Automotive Leasing,65197
Chorley Borough Council,http://statistics.data.gov.uk/id/local-authority/30UE,Corporate Management,1008,Policy & Governance,Car Leasing Payment,14100,Direct Employee Expenses,5001,Expenses NAME REDACTED,04/01/2019,133918,"2,756.08",Revenue,LeasePlan UK Ltd T/A Automotive Leasing,65197
Chorley Borough Council,http://statistics.data.gov.uk/id/local-authority/30UE,Corporate Management,1008,Policy & Governance,Car Leasing Payment,14100,Direct Employee Expenses,5001,Expenses,04/01/2019,133918,244.66,Revenue,LeasePlan UK Ltd T/A Automotive Leasing,65197
Chorley Borough Council,http://statistics.data.gov.uk/id/local-authority/30UE,Planning Policy,1092,Policy & Governance,Car Leasing Payment,14100,Direct Employee Expenses,5001,,16/01/2019,134900,"2,285.24",Revenue,LeasePlan UK Ltd T/A Automotive Leasing,65197
Chorley Borough Council,http://statistics.data.gov.uk/id/local-authority/30UE,Planning Policy,1092,Policy & Governance,Car Leasing Payment,14100,Direct Employee Expenses,5001,vat,16/01/2019,134900,198.78,Revenue,LeasePlan UK Ltd T/A Automotive Leasing,65197
Chorley Borough Council,http://statistics.data.gov.uk/id/local-authority/30UE,Unapportionable Central OHeads,1009,Policy & Governance,Car Leasing Payment,14100,Direct Employee Expenses,5001,"Ref 8371 Car Hire for NAME REDACTED Chorley Council,45 Days Car Hire at 13.95 Exl VAT",16/01/2019,135000,390.60,Revenue,Lex Autolease Ltd,70682
Chorley Borough Council,http://statistics.data.gov.uk/id/local-authority/30UE,Unapportionable Central OHeads,1009,Policy & Governance,Car Leasing Payment,14100,Direct Employee Expenses,5001,rented vehicle,16/01/2019,135000,39.06,Revenue,Lex Autolease Ltd,70682
Chorley Borough Council,http://statistics.data.gov.uk/id/local-authority/30UE,Unapportionable Central OHeads,1009,Policy & Governance,Conferences - Staff,40120,Expenses,5030,2 places (1 free) on Local Government Funding Reform - Settlement 2019/20 & the Road Ahead- Dec 2018 in Manchester,30/01/2019,134849,390.00,Revenue,LG Futures,22551
Chorley Borough Council,http://statistics.data.gov.uk/id/local-authority/30UE,Unapportionable Central OHeads,1009,Policy & Governance,Miscellaneous Expenses,40200,Miscellaneous Expenses,5034,2019 calendar advert,09/01/2019,133840,250.00,Revenue,Loop Publishing Ltd,18770
Chorley Borough Council,http://statistics.data.gov.uk/id/local-authority/30UE,Corporate Management,1008,Policy & Governance,Exhibitions & Special Events,40158,Miscellaneous Expenses,5034,Market Walk show Saturday 22 December,16/01/2019,134909,500.00,Revenue,Louby Lou Ltd,76335
Chorley Borough Council,http://statistics.data.gov.uk/id/local-authority/30UE,Service Management & Support,1009,Customer & Digital,Grounds Maintenance Contractor,20043,Grounds Maintenance Costs,5013,Invoice 38 (1/11/18 to 21/12/18) Tree Works,09/01/2019,134964,"2,417.50",Revenue,M J Walker,62044
Chorley Borough Council,http://statistics.data.gov.uk/id/local-authority/30UE,Service Management & Support,1009,Customer & Digital,Grounds Maintenance Contractor,20043,Grounds Maintenance Costs,5013,Horse Chestnut fell in Big Wood at rear of 3 Johns Wood Close,16/01/2019,135116,500.00,Revenue,M J Walker,62044
Chorley Borough Council,http://statistics.data.gov.uk/id/local-authority/30UE,Capital,Capital,Early Intervention,Grants,3002,Capital Expenditure,Capital,ADDRESS REDACTED,18/01/2019,135191,"4,430.00",Capital,M.J Park Building Contractors,20367
Chorley Borough Council,http://statistics.data.gov.uk/id/local-authority/30UE,Unapportionable Central OHeads,1009,Policy & Governance,Exhibitions & Special Events,40158,Miscellaneous Expenses,5034,The Greatest Lights Switch On,04/01/2019,133845,"10,485.00",Revenue,Marvel At Everything Ltd,70955
Chorley Borough Council,http://statistics.data.gov.uk/id/local-authority/30UE,Central Support Services,1009,Policy & Governance,Agency Staff,13000,Direct Employee Expenses,5001,Services Procurement,09/01/2019,134478,523.20,Revenue,Matrix SCM Ltd,22128
Chorley Borough Council,http://statistics.data.gov.uk/id/local-authority/30UE,Unapportionable Central OHeads,1009,Policy & Governance,Agency Staff,13000,Direct Employee Expenses,5001,Services Procurement,09/01/2019,134478,383.23,Revenue,Matrix SCM Ltd,22128
Chorley Borough Council,http://statistics.data.gov.uk/id/local-authority/30UE,Unapportionable Central OHeads,1009,Policy & Governance,Agency Staff,13000,Direct Employee Expenses,5001,Services Procurement,09/01/2019,134478,"1,476.80",Revenue,Matrix SCM Ltd,22128
Chorley Borough Council,http://statistics.data.gov.uk/id/local-authority/30UE,Central Support Services,1009,Policy & Governance,Agency Staff,13000,Direct Employee Expenses,5001,NAME REDACTED,09/01/2019,134770,523.20,Revenue,Matrix SCM Ltd,22128
Chorley Borough Council,http://statistics.data.gov.uk/id/local-authority/30UE,Unapportionable Central OHeads,1009,Policy & Governance,Agency Staff,13000,Direct Employee Expenses,5001,NAME REDACTED,09/01/2019,134770,407.37,Revenue,Matrix SCM Ltd,22128
Chorley Borough Council,http://statistics.data.gov.uk/id/local-authority/30UE,Unapportionable Central OHeads,1009,Policy & Governance,Agency Staff,13000,Direct Employee Expenses,5001,NAME REDACTED,09/01/2019,134770,738.40,Revenue,Matrix SCM Ltd,22128
Chorley Borough Council,http://statistics.data.gov.uk/id/local-authority/30UE,Central Support Services,1009,Policy & Governance,Agency Staff,13000,Direct Employee Expenses,5001,NAME REDACTED,09/01/2019,134842,523.20,Revenue,Matrix SCM Ltd,22128
Chorley Borough Council,http://statistics.data.gov.uk/id/local-authority/30UE,Unapportionable Central OHeads,1009,Policy & Governance,Agency Staff,13000,Direct Employee Expenses,5001,NAME REDACTED,16/01/2019,135043,437.54,Revenue,Matrix SCM Ltd,22128
Chorley Borough Council,http://statistics.data.gov.uk/id/local-authority/30UE,Unapportionable Central OHeads,1009,Policy & Governance,Agency Staff,13000,Direct Employee Expenses,5001,NAME REDACTED,16/01/2019,135043,"1,033.76",Revenue,Matrix SCM Ltd,22128
Chorley Borough Council,http://statistics.data.gov.uk/id/local-authority/30UE,Unapportionable Central OHeads,1009,Policy & Governance,Agency Staff,13000,Direct Employee Expenses,5001,NAME REDACTED,23/01/2019,135194,590.72,Revenue,Matrix SCM Ltd,22128
Chorley Borough Council,http://statistics.data.gov.uk/id/local-authority/30UE,Development Control,1091,Policy & Governance,Legal Fees,40171,Miscellaneous Expenses,5034,WORK @ BUCKSHAW VILLAGE,09/01/2019,134460,"1,650.00",Revenue,Mathew Henderson,77746
Chorley Borough Council,http://statistics.data.gov.uk/id/local-authority/30UE,Elections,1012,Policy & Governance,Rent/Hire Of Premises,20017,Premises Rents,5007,Room hire for local elections 2 May 2018,30/01/2019,135365,380.00,Revenue,Mawdesley Village Hall,18423
Chorley Borough Council,http://statistics.data.gov.uk/id/local-authority/30UE,Unapportionable Central OHeads,1009,Business Development & Growth,Planned Maintenance,20006,Repairs Maintenance & Alts,5005,Annual Purchase order for water monitoring,02/01/2019,134731,621.24,Revenue,Maxigiene Environmental Services Ltd,67160
Chorley Borough Council,http://statistics.data.gov.uk/id/local-authority/30UE,Central Support Services,1009,Customer & Digital,Miscellaneous Expenses,40200,Miscellaneous Expenses,5034,40 ton of Ultra Tec. Neighbourhood Project - Bolton Road Backs,09/01/2019,134857,828.99,Revenue,Mc & Ma Stewart (Haulage Ltd),16627
Chorley Borough Council,http://statistics.data.gov.uk/id/local-authority/30UE,Unapportionable Central OHeads,1009,Customer & Digital,Training Course Fees,17010,Indirect Employee Expenses,5002,1 Day Council Tax Training,02/01/2019,134684,575.00,Revenue,Meritec,19498
Chorley Borough Council,http://statistics.data.gov.uk/id/local-authority/30UE,Capital,Capital,Customer & Digital,Equipment,3014,Capital Expenditure,Capital,50x BLUE 240-litre wheeled bin lids and pins - to replace defective (agreement with NAME REDACTED),23/01/2019,133515,297.50,Capital,MGB Plastics Ltd,18624
Chorley Borough Council,http://statistics.data.gov.uk/id/local-authority/30UE,Capital,Capital,Early Intervention,Grants,3002,Capital Expenditure,Capital,ADDRESS REDACTED,23/01/2019,135187,"11,625.92",Capital,Mint Northwest Ltd,65607
Chorley Borough Council,http://statistics.data.gov.uk/id/local-authority/30UE,Capital,Capital,Early Intervention,Grants,3002,Capital Expenditure,Capital,ADDRESS REDACTED,18/01/2019,135188,"4,709.71",Capital,Mint Northwest Ltd,65607
Chorley Borough Council,http://statistics.data.gov.uk/id/local-authority/30UE,Capital,Capital,Early Intervention,Grants,3002,Capital Expenditure,Capital,ADDRESS REDACTED,18/01/2019,135198,616.40,Capital,Mint Northwest Ltd,65607
Chorley Borough Council,http://statistics.data.gov.uk/id/local-authority/30UE,Capital,Capital,Early Intervention,Grants,3002,Capital Expenditure,Capital,ADDRESS REDACTED,02/01/2019,134774,"6,140.00",Capital,Mobility Care Services,70841
Chorley Borough Council,http://statistics.data.gov.uk/id/local-authority/30UE,Private Sector HSG Renewal,1073,Early Intervention,External Contractor,40198,Miscellaneous Expenses,5034,ref1235,04/01/2019,134809,460.00,Revenue,Mobility Care Services,70841
Chorley Borough Council,http://statistics.data.gov.uk/id/local-authority/30UE,Private Sector HSG Renewal,1073,Early Intervention,External Contractor,40198,Miscellaneous Expenses,5034,ref1236,04/01/2019,134809,66.00,Revenue,Mobility Care Services,70841
Chorley Borough Council,http://statistics.data.gov.uk/id/local-authority/30UE,Private Sector HSG Renewal,1073,Early Intervention,External Contractor,40198,Miscellaneous Expenses,5034,ref1237,04/01/2019,134809,132.00,Revenue,Mobility Care Services,70841
Chorley Borough Council,http://statistics.data.gov.uk/id/local-authority/30UE,Private Sector HSG Renewal,1073,Early Intervention,External Contractor,40198,Miscellaneous Expenses,5034,ref1251,04/01/2019,134809,180.00,Revenue,Mobility Care Services,70841
Chorley Borough Council,http://statistics.data.gov.uk/id/local-authority/30UE,Private Sector HSG Renewal,1073,Early Intervention,External Contractor,40198,Miscellaneous Expenses,5034,ref1252,04/01/2019,134809,66.00,Revenue,Mobility Care Services,70841
Chorley Borough Council,http://statistics.data.gov.uk/id/local-authority/30UE,Private Sector HSG Renewal,1073,Early Intervention,External Contractor,40198,Miscellaneous Expenses,5034,ref1253,04/01/2019,134809,66.00,Revenue,Mobility Care Services,70841
Chorley Borough Council,http://statistics.data.gov.uk/id/local-authority/30UE,Private Sector HSG Renewal,1073,Early Intervention,External Contractor,40198,Miscellaneous Expenses,5034,ref1258,04/01/2019,134809,86.00,Revenue,Mobility Care Services,70841
Chorley Borough Council,http://statistics.data.gov.uk/id/local-authority/30UE,Private Sector HSG Renewal,1073,Early Intervention,External Contractor,40198,Miscellaneous Expenses,5034,ref1273,04/01/2019,134809,157.00,Revenue,Mobility Care Services,70841
Chorley Borough Council,http://statistics.data.gov.uk/id/local-authority/30UE,Private Sector HSG Renewal,1073,Early Intervention,External Contractor,40198,Miscellaneous Expenses,5034,ref1274,04/01/2019,134809,66.00,Revenue,Mobility Care Services,70841
Chorley Borough Council,http://statistics.data.gov.uk/id/local-authority/30UE,Private Sector HSG Renewal,1073,Early Intervention,External Contractor,40198,Miscellaneous Expenses,5034,ref1272,04/01/2019,134809,132.00,Revenue,Mobility Care Services,70841
Chorley Borough Council,http://statistics.data.gov.uk/id/local-authority/30UE,Private Sector HSG Renewal,1073,Early Intervention,External Contractor,40198,Miscellaneous Expenses,5034,ref1300,04/01/2019,134809,850.00,Revenue,Mobility Care Services,70841
Chorley Borough Council,http://statistics.data.gov.uk/id/local-authority/30UE,Private Sector HSG Renewal,1073,Early Intervention,External Contractor,40198,Miscellaneous Expenses,5034,ref1313,04/01/2019,134809,66.00,Revenue,Mobility Care Services,70841
Chorley Borough Council,http://statistics.data.gov.uk/id/local-authority/30UE,Private Sector HSG Renewal,1073,Early Intervention,External Contractor,40198,Miscellaneous Expenses,5034,ref1314,04/01/2019,134809,64.00,Revenue,Mobility Care Services,70841
Chorley Borough Council,http://statistics.data.gov.uk/id/local-authority/30UE,Private Sector HSG Renewal,1073,Early Intervention,External Contractor,40198,Miscellaneous Expenses,5034,ref1315,04/01/2019,134809,66.00,Revenue,Mobility Care Services,70841
Chorley Borough Council,http://statistics.data.gov.uk/id/local-authority/30UE,Private Sector HSG Renewal,1073,Early Intervention,External Contractor,40198,Miscellaneous Expenses,5034,ref1316,04/01/2019,134809,66.00,Revenue,Mobility Care Services,70841
Chorley Borough Council,http://statistics.data.gov.uk/id/local-authority/30UE,Private Sector HSG Renewal,1073,Early Intervention,External Contractor,40198,Miscellaneous Expenses,5034,ref1324,04/01/2019,134809,198.00,Revenue,Mobility Care Services,70841
Chorley Borough Council,http://statistics.data.gov.uk/id/local-authority/30UE,Private Sector HSG Renewal,1073,Early Intervention,External Contractor,40198,Miscellaneous Expenses,5034,ref1325,04/01/2019,134809,128.00,Revenue,Mobility Care Services,70841
Chorley Borough Council,http://statistics.data.gov.uk/id/local-authority/30UE,Private Sector HSG Renewal,1073,Early Intervention,External Contractor,40198,Miscellaneous Expenses,5034,ref1326,04/01/2019,134809,128.00,Revenue,Mobility Care Services,70841
Chorley Borough Council,http://statistics.data.gov.uk/id/local-authority/30UE,Private Sector HSG Renewal,1073,Early Intervention,External Contractor,40198,Miscellaneous Expenses,5034,ref1327,04/01/2019,134809,111.00,Revenue,Mobility Care Services,70841
Chorley Borough Council,http://statistics.data.gov.uk/id/local-authority/30UE,Private Sector HSG Renewal,1073,Early Intervention,External Contractor,40198,Miscellaneous Expenses,5034,ref1328,04/01/2019,134809,256.00,Revenue,Mobility Care Services,70841
Chorley Borough Council,http://statistics.data.gov.uk/id/local-authority/30UE,Private Sector HSG Renewal,1073,Early Intervention,External Contractor,40198,Miscellaneous Expenses,5034,ref1329,04/01/2019,134809,128.00,Revenue,Mobility Care Services,70841
Chorley Borough Council,http://statistics.data.gov.uk/id/local-authority/30UE,Private Sector HSG Renewal,1073,Early Intervention,External Contractor,40198,Miscellaneous Expenses,5034,ref13330,04/01/2019,134809,256.00,Revenue,Mobility Care Services,70841
Chorley Borough Council,http://statistics.data.gov.uk/id/local-authority/30UE,Private Sector HSG Renewal,1073,Early Intervention,External Contractor,40198,Miscellaneous Expenses,5034,ref1351,04/01/2019,134809,256.00,Revenue,Mobility Care Services,70841
Chorley Borough Council,http://statistics.data.gov.uk/id/local-authority/30UE,Private Sector HSG Renewal,1073,Early Intervention,External Contractor,40198,Miscellaneous Expenses,5034,ref1352,04/01/2019,134809,680.00,Revenue,Mobility Care Services,70841
Chorley Borough Council,http://statistics.data.gov.uk/id/local-authority/30UE,Private Sector HSG Renewal,1073,Early Intervention,External Contractor,40198,Miscellaneous Expenses,5034,ref1350,04/01/2019,134809,111.00,Revenue,Mobility Care Services,70841
Chorley Borough Council,http://statistics.data.gov.uk/id/local-authority/30UE,Private Sector HSG Renewal,1073,Early Intervention,External Contractor,40198,Miscellaneous Expenses,5034,ref1349,04/01/2019,134809,160.00,Revenue,Mobility Care Services,70841
Chorley Borough Council,http://statistics.data.gov.uk/id/local-authority/30UE,Private Sector HSG Renewal,1073,Early Intervention,External Contractor,40198,Miscellaneous Expenses,5034,ref1347,04/01/2019,134809,64.00,Revenue,Mobility Care Services,70841
Chorley Borough Council,http://statistics.data.gov.uk/id/local-authority/30UE,Private Sector HSG Renewal,1073,Early Intervention,External Contractor,40198,Miscellaneous Expenses,5034,ref1348,04/01/2019,134809,155.00,Revenue,Mobility Care Services,70841
Chorley Borough Council,http://statistics.data.gov.uk/id/local-authority/30UE,Private Sector HSG Renewal,1073,Early Intervention,External Contractor,40198,Miscellaneous Expenses,5034,Ref 1366,18/01/2019,135199,66.00,Revenue,Mobility Care Services,70841
Chorley Borough Council,http://statistics.data.gov.uk/id/local-authority/30UE,Private Sector HSG Renewal,1073,Early Intervention,External Contractor,40198,Miscellaneous Expenses,5034,Ref 1367,18/01/2019,135199,198.00,Revenue,Mobility Care Services,70841
Chorley Borough Council,http://statistics.data.gov.uk/id/local-authority/30UE,Private Sector HSG Renewal,1073,Early Intervention,External Contractor,40198,Miscellaneous Expenses,5034,Ref 1381,18/01/2019,135199,256.00,Revenue,Mobility Care Services,70841
Chorley Borough Council,http://statistics.data.gov.uk/id/local-authority/30UE,Private Sector HSG Renewal,1073,Early Intervention,External Contractor,40198,Miscellaneous Expenses,5034,Ref 1382,18/01/2019,135199,520.00,Revenue,Mobility Care Services,70841
Chorley Borough Council,http://statistics.data.gov.uk/id/local-authority/30UE,Private Sector HSG Renewal,1073,Early Intervention,External Contractor,40198,Miscellaneous Expenses,5034,Ref 1383,18/01/2019,135199,256.00,Revenue,Mobility Care Services,70841
Chorley Borough Council,http://statistics.data.gov.uk/id/local-authority/30UE,Private Sector HSG Renewal,1073,Early Intervention,External Contractor,40198,Miscellaneous Expenses,5034,Ref 1384,18/01/2019,135199,111.00,Revenue,Mobility Care Services,70841
Chorley Borough Council,http://statistics.data.gov.uk/id/local-authority/30UE,Private Sector HSG Renewal,1073,Early Intervention,External Contractor,40198,Miscellaneous Expenses,5034,Ref 1385,18/01/2019,135199,222.00,Revenue,Mobility Care Services,70841
Chorley Borough Council,http://statistics.data.gov.uk/id/local-authority/30UE,Private Sector HSG Renewal,1073,Early Intervention,External Contractor,40198,Miscellaneous Expenses,5034,Ref 1386,18/01/2019,135199,512.00,Revenue,Mobility Care Services,70841
Chorley Borough Council,http://statistics.data.gov.uk/id/local-authority/30UE,Private Sector HSG Renewal,1073,Early Intervention,External Contractor,40198,Miscellaneous Expenses,5034,Ref 1396,18/01/2019,135199,360.00,Revenue,Mobility Care Services,70841
Chorley Borough Council,http://statistics.data.gov.uk/id/local-authority/30UE,Private Sector HSG Renewal,1073,Early Intervention,External Contractor,40198,Miscellaneous Expenses,5034,Ref 1405,18/01/2019,135199,90.00,Revenue,Mobility Care Services,70841
Chorley Borough Council,http://statistics.data.gov.uk/id/local-authority/30UE,Private Sector HSG Renewal,1073,Early Intervention,External Contractor,40198,Miscellaneous Expenses,5034,Ref 1406,18/01/2019,135199,66.00,Revenue,Mobility Care Services,70841
Chorley Borough Council,http://statistics.data.gov.uk/id/local-authority/30UE,Private Sector HSG Renewal,1073,Early Intervention,External Contractor,40198,Miscellaneous Expenses,5034,Ref 1407,18/01/2019,135199,40.00,Revenue,Mobility Care Services,70841
Chorley Borough Council,http://statistics.data.gov.uk/id/local-authority/30UE,Private Sector HSG Renewal,1073,Early Intervention,External Contractor,40198,Miscellaneous Expenses,5034,Ref 1408,18/01/2019,135199,66.00,Revenue,Mobility Care Services,70841
Chorley Borough Council,http://statistics.data.gov.uk/id/local-authority/30UE,Private Sector HSG Renewal,1073,Early Intervention,External Contractor,40198,Miscellaneous Expenses,5034,Ref 1419,18/01/2019,135199,66.00,Revenue,Mobility Care Services,70841
Chorley Borough Council,http://statistics.data.gov.uk/id/local-authority/30UE,Private Sector HSG Renewal,1073,Early Intervention,External Contractor,40198,Miscellaneous Expenses,5034,Ref 1420,18/01/2019,135199,111.00,Revenue,Mobility Care Services,70841
Chorley Borough Council,http://statistics.data.gov.uk/id/local-authority/30UE,Private Sector HSG Renewal,1073,Early Intervention,External Contractor,40198,Miscellaneous Expenses,5034,Ref 1421,18/01/2019,135199,111.00,Revenue,Mobility Care Services,70841
Chorley Borough Council,http://statistics.data.gov.uk/id/local-authority/30UE,Private Sector HSG Renewal,1073,Early Intervention,External Contractor,40198,Miscellaneous Expenses,5034,Ref 1422,18/01/2019,135199,111.00,Revenue,Mobility Care Services,70841
Chorley Borough Council,http://statistics.data.gov.uk/id/local-authority/30UE,Private Sector HSG Renewal,1073,Early Intervention,External Contractor,40198,Miscellaneous Expenses,5034,Ref 1423,18/01/2019,135199,111.00,Revenue,Mobility Care Services,70841
Chorley Borough Council,http://statistics.data.gov.uk/id/local-authority/30UE,Private Sector HSG Renewal,1073,Early Intervention,External Contractor,40198,Miscellaneous Expenses,5034,Ref 1424,18/01/2019,135199,256.00,Revenue,Mobility Care Services,70841
Chorley Borough Council,http://statistics.data.gov.uk/id/local-authority/30UE,Private Sector HSG Renewal,1073,Early Intervention,External Contractor,40198,Miscellaneous Expenses,5034,Ref 1425,18/01/2019,135199,128.00,Revenue,Mobility Care Services,70841
Chorley Borough Council,http://statistics.data.gov.uk/id/local-authority/30UE,Private Sector HSG Renewal,1073,Early Intervention,External Contractor,40198,Miscellaneous Expenses,5034,Ref 1426,18/01/2019,135199,380.00,Revenue,Mobility Care Services,70841
Chorley Borough Council,http://statistics.data.gov.uk/id/local-authority/30UE,Private Sector HSG Renewal,1073,Early Intervention,External Contractor,40198,Miscellaneous Expenses,5034,Ref 1428,18/01/2019,135199,66.00,Revenue,Mobility Care Services,70841
Chorley Borough Council,http://statistics.data.gov.uk/id/local-authority/30UE,Private Sector HSG Renewal,1073,Early Intervention,External Contractor,40198,Miscellaneous Expenses,5034,Ref 1439,18/01/2019,135199,740.00,Revenue,Mobility Care Services,70841
Chorley Borough Council,http://statistics.data.gov.uk/id/local-authority/30UE,Private Sector HSG Renewal,1073,Early Intervention,External Contractor,40198,Miscellaneous Expenses,5034,Ref 1440,18/01/2019,135199,66.00,Revenue,Mobility Care Services,70841
Chorley Borough Council,http://statistics.data.gov.uk/id/local-authority/30UE,Private Sector HSG Renewal,1073,Early Intervention,External Contractor,40198,Miscellaneous Expenses,5034,Ref 1459,18/01/2019,135199,256.00,Revenue,Mobility Care Services,70841
Chorley Borough Council,http://statistics.data.gov.uk/id/local-authority/30UE,Private Sector HSG Renewal,1073,Early Intervention,External Contractor,40198,Miscellaneous Expenses,5034,Ref 1460,18/01/2019,135199,222.00,Revenue,Mobility Care Services,70841
Chorley Borough Council,http://statistics.data.gov.uk/id/local-authority/30UE,Private Sector HSG Renewal,1073,Early Intervention,External Contractor,40198,Miscellaneous Expenses,5034,Ref 1472,18/01/2019,135199,128.00,Revenue,Mobility Care Services,70841
Chorley Borough Council,http://statistics.data.gov.uk/id/local-authority/30UE,Private Sector HSG Renewal,1073,Early Intervention,External Contractor,40198,Miscellaneous Expenses,5034,Ref 1473,18/01/2019,135199,222.00,Revenue,Mobility Care Services,70841
Chorley Borough Council,http://statistics.data.gov.uk/id/local-authority/30UE,Private Sector HSG Renewal,1073,Early Intervention,External Contractor,40198,Miscellaneous Expenses,5034,Ref 1474,18/01/2019,135199,950.00,Revenue,Mobility Care Services,70841
Chorley Borough Council,http://statistics.data.gov.uk/id/local-authority/30UE,Private Sector HSG Renewal,1073,Early Intervention,External Contractor,40198,Miscellaneous Expenses,5034,Ref 1480,18/01/2019,135199,66.00,Revenue,Mobility Care Services,70841
Chorley Borough Council,http://statistics.data.gov.uk/id/local-authority/30UE,Private Sector HSG Renewal,1073,Early Intervention,External Contractor,40198,Miscellaneous Expenses,5034,Ref 1481,18/01/2019,135199,110.00,Revenue,Mobility Care Services,70841
Chorley Borough Council,http://statistics.data.gov.uk/id/local-authority/30UE,Private Sector HSG Renewal,1073,Early Intervention,External Contractor,40198,Miscellaneous Expenses,5034,Ref 1484,18/01/2019,135199,140.00,Revenue,Mobility Care Services,70841
Chorley Borough Council,http://statistics.data.gov.uk/id/local-authority/30UE,Private Sector HSG Renewal,1073,Early Intervention,External Contractor,40198,Miscellaneous Expenses,5034,Ref 1485,18/01/2019,135199,66.00,Revenue,Mobility Care Services,70841
Chorley Borough Council,http://statistics.data.gov.uk/id/local-authority/30UE,Private Sector HSG Renewal,1073,Early Intervention,External Contractor,40198,Miscellaneous Expenses,5034,Ref 1486,18/01/2019,135199,132.00,Revenue,Mobility Care Services,70841
Chorley Borough Council,http://statistics.data.gov.uk/id/local-authority/30UE,Private Sector HSG Renewal,1073,Early Intervention,External Contractor,40198,Miscellaneous Expenses,5034,Ref 1496,18/01/2019,135199,140.00,Revenue,Mobility Care Services,70841
Chorley Borough Council,http://statistics.data.gov.uk/id/local-authority/30UE,Private Sector HSG Renewal,1073,Early Intervention,External Contractor,40198,Miscellaneous Expenses,5034,Ref 1497,18/01/2019,135199,80.00,Revenue,Mobility Care Services,70841
Chorley Borough Council,http://statistics.data.gov.uk/id/local-authority/30UE,Private Sector HSG Renewal,1073,Early Intervention,External Contractor,40198,Miscellaneous Expenses,5034,Ref 1273,18/01/2019,135199,157.00,Revenue,Mobility Care Services,70841
Chorley Borough Council,http://statistics.data.gov.uk/id/local-authority/30UE,Central Support Services,1009,Customer & Digital,Miscellaneous Expenses,40200,Miscellaneous Expenses,5034,Site works at entry to Jubilee Recreation Ground as per agreed quotation,04/01/2019,134706,"1,780.00",Revenue,Mr Andy Hart,72236
Chorley Borough Council,http://statistics.data.gov.uk/id/local-authority/30UE,Central Support Services,1009,Customer & Digital,Miscellaneous Expenses,40200,Miscellaneous Expenses,5034,"Neighbourhood project - Creation of a community orchard/garden on Highways Ave, Euxton",23/01/2019,135139,"2,440.00",Revenue,Mr Andy Hart,72236
Chorley Borough Council,http://statistics.data.gov.uk/id/local-authority/30UE,Central Support Services,1009,Customer & Digital,Legal Fees,40171,Miscellaneous Expenses,5034,Fees for the attendance in the case of Chorley BC - V - NAMES REDACTED ,09/01/2019,134985,"3,750.00",Revenue,Mr Jacob Dyer,21575
Chorley Borough Council,http://statistics.data.gov.uk/id/local-authority/30UE,Central Support Services,1009,Customer & Digital,Miscellaneous Expenses,40200,Miscellaneous Expenses,5034,"Work carried out at the backs of 72 Bolton Road, Adlington. Neighbourhood ProjectScrapping footpath and re-surfacing",02/01/2019,134659,600.00,Revenue,Mr Stephen Scambler,16710
Chorley Borough Council,http://statistics.data.gov.uk/id/local-authority/30UE,Central Support Services,1009,Customer & Digital,Miscellaneous Expenses,40200,Miscellaneous Expenses,5034,materials,02/01/2019,134659,890.00,Revenue,Mr Stephen Scambler,16710
Chorley Borough Council,http://statistics.data.gov.uk/id/local-authority/30UE,Service Management & Support,1009,Customer & Digital,Hire of Plant,40001,"Equipment, Furniture & Materia",5023,Hire of a mini digger,02/01/2019,134660,725.00,Revenue,Mr Stephen Scambler,16710
Chorley Borough Council,http://statistics.data.gov.uk/id/local-authority/30UE,Unapportionable Central OHeads,1009,Business Development & Growth,Asset Maintenance Fund,20012,Repairs Maintenance & Alts,5005,compensation,16/01/2019,135095,250.00,Revenue,NAME REDACTED,77768
Chorley Borough Council,http://statistics.data.gov.uk/id/local-authority/30UE,Tourism,1039,Policy & Governance,Supplies-Grounds Maintenance,40025,"Equipment, Furniture & Materia",5023,Sweet Pea 12pg brochure 2000,09/01/2019,133438,420.00,Revenue,N B Colour Print Ltd,17917
Chorley Borough Council,http://statistics.data.gov.uk/id/local-authority/30UE,Central Support Services,1009,Policy & Governance,Miscellaneous Expenses,40200,Miscellaneous Expenses,5034,2 x half page inserts in Chorley Citizen Wednesday 19th December and Wednesday 2nd January. Artwork to follow. ,16/01/2019,135111,314.24,Revenue,Newsquest (Lancashire) Limited,18117
Chorley Borough Council,http://statistics.data.gov.uk/id/local-authority/30UE,Capital,Capital,Customer & Digital,Other Capital Grants/Loans,3000,Capital Expenditure,Capital,CBC14,11/01/2019,135042,"53,086.67",Capital,Next Big Thing Developments,77044
Chorley Borough Council,http://statistics.data.gov.uk/id/local-authority/30UE,Unapportionable Central OHeads,1009,Chief Executive,Stationery,40050,"Printing, Stationery & General",5026,Newspaper fro Union St 1 April 2018 - 31 March 2019,18/01/2019,135140,391.28,Revenue,Nooze `n` Booze,19382
Chorley Borough Council,http://statistics.data.gov.uk/id/local-authority/30UE,Unapportionable Central OHeads,1009,Policy & Governance,Laundry,40042,"Clothing, Uniforms and Laundry",5025,"Tea towels and tablecloths laundered and pressed, collected and delivered up to 12th January 2019",18/01/2019,135192,423.00,Revenue,North West Ironing & Laundry Centre,20450
Chorley Borough Council,http://statistics.data.gov.uk/id/local-authority/30UE,Service Management & Support,1009,Customer & Digital,Vehicles and Plant Maintenance,30045,Direct Transport Costs,5016,"500/850mm Blue 2.8mm poly&3.3mm Wire Heavyduty DIS(71107/1-HD),50/85cm CompactYellow 2.8m Probrush Disk ",09/01/2019,134822,299.19,Revenue,Northern Municipal Spares Ltd,17752
Chorley Borough Council,http://statistics.data.gov.uk/id/local-authority/30UE,Service Management & Support,1009,Customer & Digital,Supplies-Grounds Maintenance,40025,"Equipment, Furniture & Materia",5023,Supply 6x mixed wire poly brush and 2x wire channel brush,16/01/2019,135025,289.52,Revenue,Northern Municipal Spares Ltd,17752
Chorley Borough Council,http://statistics.data.gov.uk/id/local-authority/30UE,Central Support Services,1009,Customer & Digital,Consultants` Fees,40077,Services,5027,MK/100947 Support & Maintenance,09/01/2019,133144,300.00,Revenue,Northgate Public Sector Limited,21391
Chorley Borough Council,http://statistics.data.gov.uk/id/local-authority/30UE,Central Support Services,1009,Customer & Digital,Consultants` Fees,40077,Services,5027,� day Technical services for additional services  to complete necessary changes in connection with Upgrade,30/01/2019,134949,425.00,Revenue,Northgate Public Services (UK) Limited,18285
Chorley Borough Council,http://statistics.data.gov.uk/id/local-authority/30UE,Central Support Services,1009,Business Development & Growth,Electricity,20013,Energy Costs,5006,1/12/18 to 31/12/2018,11/01/2019,134954,301.61,Revenue,Npower Commercial Gas,16814
Chorley Borough Council,http://statistics.data.gov.uk/id/local-authority/30UE,Unapportionable Central OHeads,1009,Business Development & Growth,Electricity,20013,Energy Costs,5006,Dec-18,11/01/2019,134982,"2,282.07",Revenue,Npower Commercial Gas,16814
Chorley Borough Council,http://statistics.data.gov.uk/id/local-authority/30UE,Unapportionable Central OHeads,1009,Business Development & Growth,Electricity,20013,Energy Costs,5006,Dec-18,11/01/2019,134983,"1,065.61",Revenue,Npower Commercial Gas,16814
Chorley Borough Council,http://statistics.data.gov.uk/id/local-authority/30UE,Unapportionable Central OHeads,1009,Business Development & Growth,Electricity,20013,Energy Costs,5006,Dec-18,11/01/2019,134984,"3,955.95",Revenue,Npower Commercial Gas,16814
Chorley Borough Council,http://statistics.data.gov.uk/id/local-authority/30UE,Democratic Represent and  Mgnt,1007,Business Development & Growth,Electricity,20013,Energy Costs,5006,2 October 2018 - 1 January 2019,23/01/2019,135206,461.81,Revenue,Npower Commercial Gas,16814
Chorley Borough Council,http://statistics.data.gov.uk/id/local-authority/30UE,Community Development,1097,Business Development & Growth,Electricity,20013,Energy Costs,5006,2 October 2018 - 1 January 2019,23/01/2019,135207,444.54,Revenue,Npower Commercial Gas,16814
Chorley Borough Council,http://statistics.data.gov.uk/id/local-authority/30UE,Community Development,1097,Business Development & Growth,Electricity,20013,Energy Costs,5006,2 October 2018 - 1 January 2019,23/01/2019,135208,254.87,Revenue,Npower Commercial Gas,16814
Chorley Borough Council,http://statistics.data.gov.uk/id/local-authority/30UE,Democratic Represent and  Mgnt,1007,Business Development & Growth,Electricity,20013,Energy Costs,5006,2 October 2018 - 1 January 2019,23/01/2019,135210,387.33,Revenue,Npower Commercial Gas,16814
Chorley Borough Council,http://statistics.data.gov.uk/id/local-authority/30UE,Corporate Management,1008,Business Development & Growth,Electricity,20013,Energy Costs,5006,2 October 2018 - 1 January 2019,23/01/2019,135211,377.66,Revenue,Npower Commercial Gas,16814
Chorley Borough Council,http://statistics.data.gov.uk/id/local-authority/30UE,Homelessness,1075,Business Development & Growth,Electricity,20013,Energy Costs,5006,1 October 2018 - 1 January 2019,23/01/2019,135212,"1,477.71",Revenue,Npower Commercial Gas,16814
Chorley Borough Council,http://statistics.data.gov.uk/id/local-authority/30UE,Recreation & Sport,1037,Business Development & Growth,Electricity,20013,Energy Costs,5006,1 October 2018 - 31 December 2018,23/01/2019,135213,266.82,Revenue,Npower Commercial Gas,16814
Chorley Borough Council,http://statistics.data.gov.uk/id/local-authority/30UE,Parking Services,1066,Business Development & Growth,External Contractors,50008,Private Contractors,5042,"New Contract for off street car park enforcement, cash collection, cash counting facilities and 3rd party bulk cash collections to Mar19",09/01/2019,134868,"4,181.04",Revenue,NSL Limited,67253
Chorley Borough Council,http://statistics.data.gov.uk/id/local-authority/30UE,Parking Services,1066,Business Development & Growth,Miscellaneous Expenses,40200,Miscellaneous Expenses,5034,Supply x3 staff to provide Steward services at Chorley on Tuesday & Saturdays only from 03.11.18 - 29.12.18. Except Christmas Day,09/01/2019,134941,"1,355.55",Revenue,NSL Limited,67253
Chorley Borough Council,http://statistics.data.gov.uk/id/local-authority/30UE,Central Support Services,1009,Customer & Digital,Computer - Support Services,40111,Communication and Computing,5028,Annual Penetration Test / IT Health Check for PSN certification,11/01/2019,134710,"5,125.00",Revenue,NTA Monitor Ltd,77620
Chorley Borough Council,http://statistics.data.gov.uk/id/local-authority/30UE,Central Support Services,1009,Customer & Digital,Miscellaneous Expenses,40200,Miscellaneous Expenses,5034,20 pre-purchased infrastructure days,16/01/2019,132441,"17,600.00",Revenue,Nviron Limited,77141
Chorley Borough Council,http://statistics.data.gov.uk/id/local-authority/30UE,Central Support Services,1009,Customer & Digital,Consultants` Fees,40077,Services,5027,"Nviron 107744 Consultant directed day.Invoice 0000004397",16/01/2019,134864,"2,790.00",Revenue,Nviron Limited,77141
Chorley Borough Council,http://statistics.data.gov.uk/id/local-authority/30UE,Control Accounts,Control,Policy & Governance,Manual Control Account,1,Balance Sheet,Balance,Refunded of former HSS Hire Site,25/01/2019,CRREF85,"4,188.88",Revenue,Opus Energy Ltd,65093
Chorley Borough Council,http://statistics.data.gov.uk/id/local-authority/30UE,Parking Services,1066,Business Development & Growth,External Contractors,50008,Private Contractors,5042,Estimated Penalty Charge Notices for Quarter 4 January 2019 - March 2019,30/01/2019,135416,283.80,Revenue,PATROL,21859
Chorley Borough Council,http://statistics.data.gov.uk/id/local-authority/30UE,Tourism,1039,Policy & Governance,External Contractor,40198,Miscellaneous Expenses,5034,"HIRE DISTRO AND CABLES FOR FLOWER SHOW INCLU LABOUR,HIRE OF ENTRANCE ARCH, SOUND SYSTEM AND GENERATOR",23/01/2019,135228,660.00,Revenue,Paul K Sound & Vision,16607
Chorley Borough Council,http://statistics.data.gov.uk/id/local-authority/30UE,Unapportionable Central OHeads,1009,Policy & Governance,Exhibitions & Special Events,40158,Miscellaneous Expenses,5034,Demonstration Kitchen,23/01/2019,135229,850.00,Revenue,Paul K Sound & Vision,16607
Chorley Borough Council,http://statistics.data.gov.uk/id/local-authority/30UE,Unapportionable Central OHeads,1009,Policy & Governance,Exhibitions & Special Events,40158,Miscellaneous Expenses,5034,SUPPLY STAGE AND P.A.FOR PICNIC IN THE PARK,23/01/2019,135230,350.00,Revenue,Paul K Sound & Vision,16607
Chorley Borough Council,http://statistics.data.gov.uk/id/local-authority/30UE,Unapportionable Central OHeads,1009,Policy & Governance,Exhibitions & Special Events,40158,Miscellaneous Expenses,5034,"REMEMBERANCE DAY ASTLEY PARK PA SYSTEM WITH BACK UP EQUIPMENT.GENERATOR HIRE, FUEL CAPABLE ",23/01/2019,135231,625.00,Revenue,Paul K Sound & Vision,16607
Chorley Borough Council,http://statistics.data.gov.uk/id/local-authority/30UE,Unapportionable Central OHeads,1009,Policy & Governance,Exhibitions & Special Events,40158,Miscellaneous Expenses,5034,SUPPLY PA SYSTEM FOR BONFIRE TO INCLUDEGENERATOR AND LIGHTING TOWERS,23/01/2019,135232,"1,400.00",Revenue,Paul K Sound & Vision,16607
Chorley Borough Council,http://statistics.data.gov.uk/id/local-authority/30UE,Unapportionable Central OHeads,1009,Policy & Governance,Service Fees,40056,Services,5027,Occupational health fees for December 2018,16/01/2019,135019,339.00,Revenue,People Asset Management Limited,76487
Chorley Borough Council,http://statistics.data.gov.uk/id/local-authority/30UE,Unapportionable Central OHeads,1009,Policy & Governance,Service Fees,40056,Services,5027,Additional invoice for October Occupational Health Charges,23/01/2019,135128,744.75,Revenue,People Asset Management Limited,76487
Chorley Borough Council,http://statistics.data.gov.uk/id/local-authority/30UE,Unapportionable Central OHeads,1009,Policy & Governance,Service Fees,40056,Services,5027,Additional invoice for October Occupational Health Charges,23/01/2019,135128,640.00,Revenue,People Asset Management Limited,76487
Chorley Borough Council,http://statistics.data.gov.uk/id/local-authority/30UE,Unapportionable Central OHeads,1009,Policy & Governance,Service Fees,40056,Services,5027,Occupational Health Charges for November 2018,18/01/2019,135129,438.50,Revenue,People Asset Management Limited,76487
Chorley Borough Council,http://statistics.data.gov.uk/id/local-authority/30UE,Capital,Capital,Business Development & Growth,Other Capital Related Fees,3024,Capital Expenditure,Capital,Clerk of Works services for Primrose Gardens,16/01/2019,134257,"1,896.00",Capital,Perfect Circle JV Ltd,76438
Chorley Borough Council,http://statistics.data.gov.uk/id/local-authority/30UE,Capital,Capital,Business Development & Growth,Other Capital Related Fees,3024,Capital Expenditure,Capital,Clerk of Works services for Primrose Gardens,16/01/2019,134866,"3,249.68",Capital,Perfect Circle JV Ltd,76438
Chorley Borough Council,http://statistics.data.gov.uk/id/local-authority/30UE,Capital,Capital,Business Development & Growth,Consultants Fees,3025,Capital Expenditure,Capital,To provide the Quantity Surveying Market Walk & associated schemes ,09/01/2019,134867,"11,171.78",Capital,Perfect Circle JV Ltd,76438
Chorley Borough Council,http://statistics.data.gov.uk/id/local-authority/30UE,Central Support Services,1009,Early Intervention,External Contractor,40198,Miscellaneous Expenses,5034,Pest Control services for 2018/19,16/01/2019,135080,340.00,Revenue,Peter L Johnson,16727
Chorley Borough Council,http://statistics.data.gov.uk/id/local-authority/30UE,Central Support Services,1009,Early Intervention,External Contractor,40198,Miscellaneous Expenses,5034,Pest Control services for 2018/19,25/01/2019,135252,340.00,Revenue,Peter L Johnson,16727
Chorley Borough Council,http://statistics.data.gov.uk/id/local-authority/30UE,Central Support Services,1009,Early Intervention,External Contractor,40198,Miscellaneous Expenses,5034,Pest Control services for 2018/19,30/01/2019,135366,340.00,Revenue,Peter L Johnson,16727
Chorley Borough Council,http://statistics.data.gov.uk/id/local-authority/30UE,Development Control,1091,Customer & Digital,Planning Application Fees,60149,Customer & Client Receipts,5064,Refund of Planning Application PP-07458903 (Submitted in error),25/01/2019,135343,462.00,Revenue,Planning Portal Ltd,77808
Chorley Borough Council,http://statistics.data.gov.uk/id/local-authority/30UE,Precepts and Collection Fund,Precepts,Policy & Governance,LPA Precept,2010,Precepts & Collection Fund,Precept,PCC Council Tax Precept,04/01/2019,134172,"654,586.00",Revenue,Police & Crime Commissioner,17438
Chorley Borough Council,http://statistics.data.gov.uk/id/local-authority/30UE,Parking Services,1066,Business Development & Growth,Miscellaneous Expenses,40200,Miscellaneous Expenses,5034,Accessible Parking Directional Sign Laminated digital print on 3mm aluminium composite mounted onto the galvanised steel columns,04/01/2019,134027,194.91,Revenue,Poppy Signs Ltd,21898
Chorley Borough Council,http://statistics.data.gov.uk/id/local-authority/30UE,Parking Services,1066,Business Development & Growth,Miscellaneous Expenses,40200,Miscellaneous Expenses,5034,Large Entrance Sign Overlay Laminated digital print mounted over existing text.(Sign to be lowered so not obscured by the cladding).,04/01/2019,134027,76.39,Revenue,Poppy Signs Ltd,21898
Chorley Borough Council,http://statistics.data.gov.uk/id/local-authority/30UE,Parking Services,1066,Business Development & Growth,Miscellaneous Expenses,40200,Miscellaneous Expenses,5034,"WAY OUT - Bottom of Ramp.Laminated digital print on 3mm aluminium compositemounted on to the galvanised steel columns.",04/01/2019,134027,169.91,Revenue,Poppy Signs Ltd,21898
Chorley Borough Council,http://statistics.data.gov.uk/id/local-authority/30UE,Parking Services,1066,Business Development & Growth,Miscellaneous Expenses,40200,Miscellaneous Expenses,5034,NO ENTRY Single Sided - Adjacent to bottom of Ramp Laminated digital print mounted onto the galvanised steel columns.,04/01/2019,134027,237.42,Revenue,Poppy Signs Ltd,21898
Chorley Borough Council,http://statistics.data.gov.uk/id/local-authority/30UE,Parking Services,1066,Business Development & Growth,Miscellaneous Expenses,40200,Miscellaneous Expenses,5034,EXIT with LEFT Arrow Laminated digital print mounted and bonded to the galvanised steel girder at the bottom of the ramp.,04/01/2019,134027,122.89,Revenue,Poppy Signs Ltd,21898
Chorley Borough Council,http://statistics.data.gov.uk/id/local-authority/30UE,Parking Services,1066,Business Development & Growth,Miscellaneous Expenses,40200,Miscellaneous Expenses,5034,NO ENTRY Single Sided - Adjacent to top of UP Ramp AND EXIT with LEFT arrow - Adjacent to top of DOWNRamp mounted onto the mesh,04/01/2019,134027,440.35,Revenue,Poppy Signs Ltd,21898
Chorley Borough Council,http://statistics.data.gov.uk/id/local-authority/30UE,Parking Services,1066,Business Development & Growth,Miscellaneous Expenses,40200,Miscellaneous Expenses,5034,"Triangular Post Chevron - Batch of 10no.10mm correx with UV digital print, mounted around columns on corners.",04/01/2019,134027,571.03,Revenue,Poppy Signs Ltd,21898
Chorley Borough Council,http://statistics.data.gov.uk/id/local-authority/30UE,Parking Services,1066,Business Development & Growth,Miscellaneous Expenses,40200,Miscellaneous Expenses,5034,"CCTV Triangular Post - Batch of 20 with UV digital print, mounted around all light columns on Ground Floor and Upper Tier.",04/01/2019,134027,381.38,Revenue,Poppy Signs Ltd,21898
Chorley Borough Council,http://statistics.data.gov.uk/id/local-authority/30UE,Parking Services,1066,Business Development & Growth,Miscellaneous Expenses,40200,Miscellaneous Expenses,5034,Friday Street Upper Tier Phase TWO No Pedestrians on this Ramp Please use designated walkway and stairs Laminated and mounted ,04/01/2019,134027,268.99,Revenue,Poppy Signs Ltd,21898
Chorley Borough Council,http://statistics.data.gov.uk/id/local-authority/30UE,Parking Services,1066,Business Development & Growth,Miscellaneous Expenses,40200,Miscellaneous Expenses,5034,NO ENTRYLaminated digital print mounted and bonded to the galvanised steel girder at the bottom of the ramp.,04/01/2019,134027,122.89,Revenue,Poppy Signs Ltd,21898
Chorley Borough Council,http://statistics.data.gov.uk/id/local-authority/30UE,Parking Services,1066,Business Development & Growth,Miscellaneous Expenses,40200,Miscellaneous Expenses,5034,"One Way White on Blue with Arrow.Height Restriction & PAY HERE with arrow, mounted to underside of walkway to stairs. ",04/01/2019,134027,330.13,Revenue,Poppy Signs Ltd,21898
Chorley Borough Council,http://statistics.data.gov.uk/id/local-authority/30UE,Economic Development,1096,Business Development & Growth,Miscellaneous Expenses,40200,Miscellaneous Expenses,5034,M61 - vinyl Full colour digital print with protective laminate. Printed on`easy peel` vinyl to allow removal at a later time.Including installation.,09/01/2019,134039,750.00,Revenue,Poppy Signs Ltd,21898
Chorley Borough Council,http://statistics.data.gov.uk/id/local-authority/30UE,Economic Development,1096,Business Development & Growth,Miscellaneous Expenses,40200,Miscellaneous Expenses,5034,"Remove vinyl from sign after the eventThe print wont be able to be re-used after removal.",09/01/2019,134039,195.60,Revenue,Poppy Signs Ltd,21898
Chorley Borough Council,http://statistics.data.gov.uk/id/local-authority/30UE,Unapportionable Central OHeads,1009,Policy & Governance,Exhibitions & Special Events,40158,Miscellaneous Expenses,5034,Part replacement for some ice rink panels.Small section comprising 3 tiles left to right and the rightmost 3 tiles on the larger section,09/01/2019,134185,715.85,Revenue,Poppy Signs Ltd,21898
Chorley Borough Council,http://statistics.data.gov.uk/id/local-authority/30UE,Corporate Management,1008,Policy & Governance,Exhibitions & Special Events,40158,Miscellaneous Expenses,5034,Remove the entire Santa Post display comprising the PostBox and the scenery Storage at our Chorley premises,09/01/2019,134907,365.00,Revenue,Poppy Signs Ltd,21898
Chorley Borough Council,http://statistics.data.gov.uk/id/local-authority/30UE,Parking Services,1066,Business Development & Growth,Miscellaneous Expenses,40200,Miscellaneous Expenses,5034,"To supply the following items as per quote:20m x 1.5m banner on upper deck side. Including design, manufacture & installation",11/01/2019,135001,787.40,Revenue,Poppy Signs Ltd,21898
Chorley Borough Council,http://statistics.data.gov.uk/id/local-authority/30UE,Parking Services,1066,Business Development & Growth,Miscellaneous Expenses,40200,Miscellaneous Expenses,5034,"4m x 61m banner on railings. Include design, manufacture & installation",11/01/2019,135001,79.72,Revenue,Poppy Signs Ltd,21898
Chorley Borough Council,http://statistics.data.gov.uk/id/local-authority/30UE,Unapportionable Central OHeads,1009,Policy & Governance,HR Approved Training Expenses,17001,Indirect Employee Expenses,5002,Team day on Monday 14 January 2019,23/01/2019,135319,990.00,Revenue,Potential Unearthed,22243
Chorley Borough Council,http://statistics.data.gov.uk/id/local-authority/30UE,Democratic Represent and  Mgnt,1007,Policy & Governance,Performing Rights Society Fees,40148,Grants and Subscriptions,5031,"Music Licence for Royalty period 6th Oct 2017 to 5th October 2018.Invoice no: SIN930105",23/01/2019,135314,964.64,Revenue,PPL PRS Ltd,77455
Chorley Borough Council,http://statistics.data.gov.uk/id/local-authority/30UE,Unapportionable Central OHeads,1009,Chief Executive,Photocopier Consumables,40049,"Printing, Stationery & General",5026,"Evolution Everyday A4 80gsm, Box 2500",23/01/2019,133890,576.90,Revenue,Premier Paper Group,54451
Chorley Borough Council,http://statistics.data.gov.uk/id/local-authority/30UE,Unapportionable Central OHeads,1009,Policy & Governance,Photocopier Consumables,40049,"Printing, Stationery & General",5026,Evolution Everyday A3 80gsm box 2500,23/01/2019,134149,26.45,Revenue,Premier Paper Group,54451
Chorley Borough Council,http://statistics.data.gov.uk/id/local-authority/30UE,Unapportionable Central OHeads,1009,Policy & Governance,Photocopier Consumables,40049,"Printing, Stationery & General",5026,"Evolution Everyday A4 80gsm, Box 2500",23/01/2019,134149,524.00,Revenue,Premier Paper Group,54451
Chorley Borough Council,http://statistics.data.gov.uk/id/local-authority/30UE,Unapportionable Central OHeads,1009,Policy & Governance,Photocopier Consumables,40049,"Printing, Stationery & General",5026,"Pro Design A4 250gsm, box 1000",23/01/2019,134149,22.48,Revenue,Premier Paper Group,54451
Chorley Borough Council,http://statistics.data.gov.uk/id/local-authority/30UE,Capital,Capital,Business Development & Growth,Other Contractor,3012,Capital Expenditure,Capital,"Infrastructure works - New Access Road, Euxton Lane (CIL)",11/01/2019,134808,"300,000.00",Capital,Primrose Holdings 1995 Ltd,17786
Chorley Borough Council,http://statistics.data.gov.uk/id/local-authority/30UE,Business Support,1095,Business Development & Growth,Miscellaneous Expenses,40200,Miscellaneous Expenses,5034,Digital Office Hub - Electrical Connection and GRP Housing,09/01/2019,134938,"2,005.67",Revenue,Primrose Holdings 1995 Ltd,17786
Chorley Borough Council,http://statistics.data.gov.uk/id/local-authority/30UE,Elections,1012,Policy & Governance,Postages,40082,Communication and Computing,5028,postage for PI Mailings initial run,16/01/2019,135105,742.17,Revenue,Print Image Facilities LLP,57870
Chorley Borough Council,http://statistics.data.gov.uk/id/local-authority/30UE,Elections,1012,Policy & Governance,Printing,40043,"Printing, Stationery & General",5026,Type A review Letter,16/01/2019,135108,590.00,Revenue,Print Image Network,21171
Chorley Borough Council,http://statistics.data.gov.uk/id/local-authority/30UE,Other Short Term Creditors,,Policy & Governance,General Balances,100,Balance Sheet,Balance,Salary Deductions L004/17332,23/01/2019,135279,"2,373.50",Revenue,PRUDENTIAL,18178
Chorley Borough Council,http://statistics.data.gov.uk/id/local-authority/30UE,Open Spaces,1038,Business Development & Growth,Professional Fees,40063,Services,5027,"Feasibility study Wigan Lane Playing Pitches,Material testing Wigan Lane Playing Pitches,Meeting with Chorley to review findings",02/01/2019,134796,"1,400.00",Revenue,PSD Agronomy,18543
Chorley Borough Council,http://statistics.data.gov.uk/id/local-authority/30UE,Control Accounts,Control,Policy & Governance,General Balances,100,Balance Sheet,Balance,CCV Vouchers,04/01/2019,133989,"5,020.50",Revenue,Reward Gateway (UK) Ltd,66814
Chorley Borough Council,http://statistics.data.gov.uk/id/local-authority/30UE,Control Accounts,Control,Policy & Governance,General Balances,100,Balance Sheet,Balance,CCV Vouchers,04/01/2019,134314,"4,509.75",Revenue,Reward Gateway (UK) Ltd,66814
Chorley Borough Council,http://statistics.data.gov.uk/id/local-authority/30UE,Private Sector HSG Renewal,1073,Early Intervention,Miscellaneous Expenses,40200,Miscellaneous Expenses,5034,Expenses ,16/01/2019,135081,"1,185.00",Revenue,Rhea Projects Ltd,77753
Chorley Borough Council,http://statistics.data.gov.uk/id/local-authority/30UE,Private Sector HSG Renewal,1073,Early Intervention,Miscellaneous Expenses,40200,Miscellaneous Expenses,5034,Expenses ,16/01/2019,135082,"1,100.00",Revenue,Rhea Projects Ltd,77753
Chorley Borough Council,http://statistics.data.gov.uk/id/local-authority/30UE,Private Sector HSG Renewal,1073,Early Intervention,Miscellaneous Expenses,40200,Miscellaneous Expenses,5034,Expenses ,16/01/2019,135083,"1,114.00",Revenue,Rhea Projects Ltd,77753
Chorley Borough Council,http://statistics.data.gov.uk/id/local-authority/30UE,Private Sector HSG Renewal,1073,Early Intervention,Miscellaneous Expenses,40200,Miscellaneous Expenses,5034,contribution,23/01/2019,135250,889.00,Revenue,Rhea Projects Ltd,77753
Chorley Borough Council,http://statistics.data.gov.uk/id/local-authority/30UE,Capital,Capital,Business Development & Growth,Surveyors Fees,3021,Capital Expenditure,Capital,Provision of Quantity Surveying Services in accordance with tender dated 30.9.2016.,09/01/2019,134408,"2,500.00",Capital,Rider Levett Bucknall,67527
Chorley Borough Council,http://statistics.data.gov.uk/id/local-authority/30UE,Elections,1012,Policy & Governance,Postages,40082,Communication and Computing,5028,business reply for RRHA-KZCB-CAXA October 2018 - March 2019,02/01/2019,134761,415.80,Revenue,Royal Mail Group Plc,17522
Chorley Borough Council,http://statistics.data.gov.uk/id/local-authority/30UE,Capital,Capital,Business Development & Growth,Consultants Fees,3025,Capital Expenditure,Capital,,09/01/2019,134153,"2,450.00",Capital,RPS Consulting Services Ltd,20128
Chorley Borough Council,http://statistics.data.gov.uk/id/local-authority/30UE,Capital,Capital,Business Development & Growth,Other Capital Related Fees,3024,Capital Expenditure,Capital,For provision of Building Services Engineering (M&E) for Digital Office Park  in accordance with your tender dated 24th November 2016.,09/01/2019,134154,"1,500.00",Capital,RPS Consulting Services Ltd,20128
Chorley Borough Council,http://statistics.data.gov.uk/id/local-authority/30UE,Capital,Capital,Business Development & Growth,Other Capital Related Fees,3024,Capital Expenditure,Capital,For provision of Building Services Engineering (M&E) for Digital Office Park  in accordance with your tender dated 24th November 2016.,11/01/2019,134946,"1,500.00",Capital,RPS Consulting Services Ltd,20128
Chorley Borough Council,http://statistics.data.gov.uk/id/local-authority/30UE,Housing Strategy,1069,Business Development & Growth,Training Course Fees,17010,Indirect Employee Expenses,5002,10 x North West Multi buy tickets,16/01/2019,135090,850.00,Revenue,RTPI North West,16769
Chorley Borough Council,http://statistics.data.gov.uk/id/local-authority/30UE,Service Management & Support,1009,Customer & Digital,Vehicles and Plant Maintenance,30045,Direct Transport Costs,5016,"Repairs to vehicle ,3 tipper panels at 250 each ,1 x drivers seat at 250",09/01/2019,134926,"1,000.00",Revenue,Sam Bird Motorbodies,20116
Chorley Borough Council,http://statistics.data.gov.uk/id/local-authority/30UE,Business Support,1095,Business Development & Growth,Electricity,20013,Energy Costs,5006,Electricity 01/12/18 - 01/01/19,23/01/2019,135115,292.97,Revenue,Scottish Power,18998
Chorley Borough Council,http://statistics.data.gov.uk/id/local-authority/30UE,Homelessness,1075,Early Intervention,External Contractor,40198,Miscellaneous Expenses,5034,Concierge services until 31/03/2019,11/01/2019,134860,"5,285.81",Revenue,Sector Security Services,19269
Chorley Borough Council,http://statistics.data.gov.uk/id/local-authority/30UE,Parking Services,1066,Business Development & Growth,Miscellaneous Expenses,40200,Miscellaneous Expenses,5034,Night mobile patrols from 15th October for monthly rolling contract up til March 19 (if needed) ,21/01/2019,134764,"1,170.00",Revenue,Securitas Security Services (UK) Ltd,70693
Chorley Borough Council,http://statistics.data.gov.uk/id/local-authority/30UE,Business Support,1095,Business Development & Growth,Security Service,40062,Services,5027,To provide security services at Market Walk Shopping Centre from 1st April 2018 to 31st March 2019 @6683 per month ,23/01/2019,135302,"6,683.00",Revenue,Securitas Security Services (UK) Ltd,70693
Chorley Borough Council,http://statistics.data.gov.uk/id/local-authority/30UE,Homelessness,1075,Early Intervention,Training Course Fees,17010,Indirect Employee Expenses,5002,Delivery of tailored In-house Training at Chorley Town Hall- 18th & 19th October 2018 plus Expenses ,04/01/2019,134820,"1,904.71",Revenue,Shelter Training,21902
Chorley Borough Council,http://statistics.data.gov.uk/id/local-authority/30UE,Development Control,1091,Policy & Governance,Legal Fees,40171,Miscellaneous Expenses,5034,buckshaw vill- royal ordnance fac,16/01/2019,135017,"5,500.00",Revenue,Simon Pickles,77744
Chorley Borough Council,http://statistics.data.gov.uk/id/local-authority/30UE,Central Support Services,1009,Customer & Digital,IT Software - Annual Licences,40101,Communication and Computing,5028,Microsoft License Renewals 3 years,16/01/2019,133459,"15,311.91",Revenue,Softcat Ltd,69996
Chorley Borough Council,http://statistics.data.gov.uk/id/local-authority/30UE,Corporate Management,1008,Customer & Digital,Miscellaneous Expenses,40200,Miscellaneous Expenses,5034,SRBC Garden Waste subscription income collected by CBC.330 subscriptions at 30 each.,23/01/2019,135180,"9,900.00",Revenue,South Ribble Borough Council,17889
Chorley Borough Council,http://statistics.data.gov.uk/id/local-authority/30UE,Service Management & Support,1009,Customer & Digital,Supplies-Grounds Maintenance,40025,"Equipment, Furniture & Materia",5023,3 x 12/24v 3 bnolt fixing LED amber beacon (23111) @ 16.87each,02/01/2019,134787,50.61,Revenue,Spalding (UK) Limited,20264
Chorley Borough Council,http://statistics.data.gov.uk/id/local-authority/30UE,Service Management & Support,1009,Customer & Digital,Supplies-Grounds Maintenance,40025,"Equipment, Furniture & Materia",5023,3 x 12/24v flexi pole LED beacon (23113) @16.87,02/01/2019,134787,50.61,Revenue,Spalding (UK) Limited,20264
Chorley Borough Council,http://statistics.data.gov.uk/id/local-authority/30UE,Service Management & Support,1009,Customer & Digital,Supplies-Grounds Maintenance,40025,"Equipment, Furniture & Materia",5023,5 x Bulldog premier manure fork (30631) @21.99each,02/01/2019,134787,109.95,Revenue,Spalding (UK) Limited,20264
Chorley Borough Council,http://statistics.data.gov.uk/id/local-authority/30UE,Service Management & Support,1009,Customer & Digital,Supplies-Grounds Maintenance,40025,"Equipment, Furniture & Materia",5023,4 x Bow saw 21`` (21254) @ 10.80,02/01/2019,134787,43.20,Revenue,Spalding (UK) Limited,20264
Chorley Borough Council,http://statistics.data.gov.uk/id/local-authority/30UE,Service Management & Support,1009,Customer & Digital,Supplies-Grounds Maintenance,40025,"Equipment, Furniture & Materia",5023,10 x bow saw blade 21`` (04178) @3.95,02/01/2019,134787,39.50,Revenue,Spalding (UK) Limited,20264
Chorley Borough Council,http://statistics.data.gov.uk/id/local-authority/30UE,Service Management & Support,1009,Customer & Digital,Supplies-Grounds Maintenance,40025,"Equipment, Furniture & Materia",5023,5 x Bulldog standard plastic leaf rake (27309) @9.50,02/01/2019,134787,47.50,Revenue,Spalding (UK) Limited,20264
Chorley Borough Council,http://statistics.data.gov.uk/id/local-authority/30UE,Service Management & Support,1009,Customer & Digital,Supplies-Grounds Maintenance,40025,"Equipment, Furniture & Materia",5023,10 x folding pruning saw (09319) @5.85each,02/01/2019,134787,58.50,Revenue,Spalding (UK) Limited,20264
Chorley Borough Council,http://statistics.data.gov.uk/id/local-authority/30UE,Democratic Represent and  Mgnt,1007,Early Intervention,Consultants` Fees,40077,Services,5027,Shadow Bid and Options Appraisal,09/01/2019,134824,"4,825.00",Revenue,Sport Leisure and Culture Consultancy,77651
Chorley Borough Council,http://statistics.data.gov.uk/id/local-authority/30UE,Capital,Capital,Business Development & Growth,Other Capital Related Fees,3024,Capital Expenditure,Capital,Provision of Public Realm & Highway Design Engineering services for a period of 30 months from w/c 5th June 2017. ,16/01/2019,134986,"2,025.00",Capital,Street Civil Engineering Limited,76750
Chorley Borough Council,http://statistics.data.gov.uk/id/local-authority/30UE,Unapportionable Central OHeads,1009,Business Development & Growth,General Repairs - Reactive,20004,Repairs Maintenance & Alts,5005,Blanket reactive Nov18 onwards,11/01/2019,134736,886.57,Revenue,Stringfellow Bldg Cntrctrs Ltd,17893
Chorley Borough Council,http://statistics.data.gov.uk/id/local-authority/30UE,Unapportionable Central OHeads,1009,Business Development & Growth,General Repairs - Reactive,20004,Repairs Maintenance & Alts,5005,Blanket reactive Nov18 onwards,09/01/2019,134742,"2,040.00",Revenue,Stringfellow Bldg Cntrctrs Ltd,17893
Chorley Borough Council,http://statistics.data.gov.uk/id/local-authority/30UE,Capital,Capital,Early Intervention,Grants,3002,Capital Expenditure,Capital,ADDRESS REDACTED,02/01/2019,134763,"3,523.00",Capital,Stringfellow Bldg Cntrctrs Ltd,17893
Chorley Borough Council,http://statistics.data.gov.uk/id/local-authority/30UE,Unapportionable Central OHeads,1009,Business Development & Growth,General Repairs - Reactive,20004,Repairs Maintenance & Alts,5005,Blanket reactive Nov18 onwards,11/01/2019,134803,338.50,Revenue,Stringfellow Bldg Cntrctrs Ltd,17893
Chorley Borough Council,http://statistics.data.gov.uk/id/local-authority/30UE,Capital,Capital,Early Intervention,Grants,3002,Capital Expenditure,Capital,Disabled Adaptation - extension at ADDRESS REDACTED,09/01/2019,134807,"10,050.00",Capital,Stringfellow Bldg Cntrctrs Ltd,17893
Chorley Borough Council,http://statistics.data.gov.uk/id/local-authority/30UE,Unapportionable Central OHeads,1009,Business Development & Growth,General Repairs - Reactive,20004,Repairs Maintenance & Alts,5005,Blanket reactive Nov18 onwards,16/01/2019,135034,"2,056.61",Revenue,Stringfellow Bldg Cntrctrs Ltd,17893
Chorley Borough Council,http://statistics.data.gov.uk/id/local-authority/30UE,Capital,Capital,Early Intervention,Grants,3002,Capital Expenditure,Capital,ADDRESS REDACTED,18/01/2019,135181,"4,800.00",Capital,Stringfellow Bldg Cntrctrs Ltd,17893
Chorley Borough Council,http://statistics.data.gov.uk/id/local-authority/30UE,Business Support,1095,Business Development & Growth,Refuse Collection,20037,Cleaning and Domestic Supplies,5012,"Market Walk Yard 1 - General Waste, compacted - roll on/roll off skip from compactor @64.83 per exchange - est at 52 per year. ",16/01/2019,134357,208.62,Revenue,SUEZ R&R UK LTD,17615
Chorley Borough Council,http://statistics.data.gov.uk/id/local-authority/30UE,Business Support,1095,Business Development & Growth,Refuse Collection,20037,Cleaning and Domestic Supplies,5012,"Market Walk Yard 1 - General Waste, compacted - roll on/roll off skip from compactor disposal@108.75 per tonne- est at 260 tonnes per year. ",16/01/2019,134357,"2,231.06",Revenue,SUEZ R&R UK LTD,17615
Chorley Borough Council,http://statistics.data.gov.uk/id/local-authority/30UE,Business Support,1095,Business Development & Growth,Refuse Collection,20037,Cleaning and Domestic Supplies,5012,Market Walk Yard 1 - 35yd roll on/roll off cardboard skip @25.00 rental per month. No haulage or disposal costs ,16/01/2019,134357,25.00,Revenue,SUEZ R&R UK LTD,17615
Chorley Borough Council,http://statistics.data.gov.uk/id/local-authority/30UE,Business Support,1095,Business Development & Growth,Refuse Collection,20037,Cleaning and Domestic Supplies,5012,Market Walk Yard 2 - 35yd roll on/roll off cardboard skip @25.00 pre month rental - no disposal or haulage costs ,16/01/2019,134357,25.00,Revenue,SUEZ R&R UK LTD,17615
Chorley Borough Council,http://statistics.data.gov.uk/id/local-authority/30UE,Business Support,1095,Business Development & Growth,Refuse Collection,20037,Cleaning and Domestic Supplies,5012,Market Walk Yard 3 - 35yd roll on/roll off cardboard skip @25.00 rental per month - no haulage or disposal costs ,16/01/2019,134357,25.00,Revenue,SUEZ R&R UK LTD,17615
Chorley Borough Council,http://statistics.data.gov.uk/id/local-authority/30UE,Business Support,1095,Business Development & Growth,Refuse Collection,20037,Cleaning and Domestic Supplies,5012,Market Walk Yard 3 -  35yd roll on/roll off plastic skip @25.00 rental per month - no haulage or disposal costs. ,16/01/2019,134357,25.00,Revenue,SUEZ R&R UK LTD,17615
Chorley Borough Council,http://statistics.data.gov.uk/id/local-authority/30UE,Democratic Represent and  Mgnt,1007,Business Development & Growth,External Contractor,40198,Miscellaneous Expenses,5034,"Skip for Crosse Hall Allotments, Chorley",09/01/2019,134359,332.51,Revenue,SUEZ R&R UK LTD,17615
Chorley Borough Council,http://statistics.data.gov.uk/id/local-authority/30UE,Business Support,1095,Business Development & Growth,Refuse Collection,20037,Cleaning and Domestic Supplies,5012,Market Walk Yard 1 - 35yd roll on/roll off cardboard skip @25.00 rental per month. No haulage or disposal costs ,09/01/2019,134812,25.00,Revenue,SUEZ R&R UK LTD,17615
Chorley Borough Council,http://statistics.data.gov.uk/id/local-authority/30UE,Business Support,1095,Business Development & Growth,Refuse Collection,20037,Cleaning and Domestic Supplies,5012,Market Walk Yard 2 - 35yd roll on/roll off cardboard skip @25.00 pre month rental - no disposal or haulage costs ,09/01/2019,134812,25.00,Revenue,SUEZ R&R UK LTD,17615
Chorley Borough Council,http://statistics.data.gov.uk/id/local-authority/30UE,Business Support,1095,Business Development & Growth,Refuse Collection,20037,Cleaning and Domestic Supplies,5012,Market Walk Yard 3 - 35yd roll on/roll off cardboard skip @25.00 rental per month - no haulage or disposal costs ,09/01/2019,134812,25.00,Revenue,SUEZ R&R UK LTD,17615
Chorley Borough Council,http://statistics.data.gov.uk/id/local-authority/30UE,Business Support,1095,Business Development & Growth,Refuse Collection,20037,Cleaning and Domestic Supplies,5012,Market Walk Yard 3 -  35yd roll on/roll off plastic skip @25.00 rental per month - no haulage or disposal costs,09/01/2019,134812,25.00,Revenue,SUEZ R&R UK LTD,17615
Chorley Borough Council,http://statistics.data.gov.uk/id/local-authority/30UE,Business Support,1095,Business Development & Growth,Refuse Collection,20037,Cleaning and Domestic Supplies,5012,"linesmissing for general waste @ 208.62, 104.31, 64.83. 1054.88, 64.83 , 1057.05",09/01/2019,134812,"2,554.52",Revenue,SUEZ R&R UK LTD,17615
Chorley Borough Council,http://statistics.data.gov.uk/id/local-authority/30UE,Service Management & Support,1009,Customer & Digital,Refuse Collection,20037,Cleaning and Domestic Supplies,5012,Exchange 20 yard street sweeping skip for transportation to Farington Waste Disposal site @64.83 per exchange,30/01/2019,135077,972.45,Revenue,SUEZ R&R UK LTD,17615
Chorley Borough Council,http://statistics.data.gov.uk/id/local-authority/30UE,Service Management & Support,1009,Customer & Digital,Refuse Collection,20037,Cleaning and Domestic Supplies,5012,Exchange 35 yard street cleaning & fly tipping skip for transportation to Whinny Hill Waste disposal site @97.25 per exchange,30/01/2019,135077,972.50,Revenue,SUEZ R&R UK LTD,17615
Chorley Borough Council,http://statistics.data.gov.uk/id/local-authority/30UE,Service Management & Support,1009,Customer & Digital,Refuse Collection,20037,Cleaning and Domestic Supplies,5012,Exchange 35 yard Green Waste skip for delivery to your depot for processing @ 70.00 per exchange,30/01/2019,135077,280.00,Revenue,SUEZ R&R UK LTD,17615
Chorley Borough Council,http://statistics.data.gov.uk/id/local-authority/30UE,Business Support,1095,Business Development & Growth,Refuse Collection,20037,Cleaning and Domestic Supplies,5012,"Market Walk Yard 1 - General Waste, compacted - roll on/roll off skip from compactor @64.83 per exchange - est at 52 per year",23/01/2019,135086,129.66,Revenue,SUEZ R&R UK LTD,17615
Chorley Borough Council,http://statistics.data.gov.uk/id/local-authority/30UE,Business Support,1095,Business Development & Growth,Refuse Collection,20037,Cleaning and Domestic Supplies,5012,"Market Walk Yard 1 - General Waste, compacted - roll on/roll off skip from compactor disposal@108.75 per tonne - est at 260 tonnes per year",23/01/2019,135086,959.18,Revenue,SUEZ R&R UK LTD,17615
Chorley Borough Council,http://statistics.data.gov.uk/id/local-authority/30UE,Business Support,1095,Business Development & Growth,Refuse Collection,20037,Cleaning and Domestic Supplies,5012,Market Walk Yard 1 - 35yd roll on/roll off cardboard skip @25.00 rental per month. No haulage or disposal costs ,23/01/2019,135086,25.00,Revenue,SUEZ R&R UK LTD,17615
Chorley Borough Council,http://statistics.data.gov.uk/id/local-authority/30UE,Business Support,1095,Business Development & Growth,Refuse Collection,20037,Cleaning and Domestic Supplies,5012,Market Walk Yard 2 - 35yd roll on/roll off cardboard skip @25.00 pre month rental - no disposal or haulage costs ,23/01/2019,135086,25.00,Revenue,SUEZ R&R UK LTD,17615
Chorley Borough Council,http://statistics.data.gov.uk/id/local-authority/30UE,Business Support,1095,Business Development & Growth,Refuse Collection,20037,Cleaning and Domestic Supplies,5012,Market Walk Yard 2 - 8 yd FEL for general waste @48.07 per lift estimated at 26 per year ,23/01/2019,135086,104.31,Revenue,SUEZ R&R UK LTD,17615
Chorley Borough Council,http://statistics.data.gov.uk/id/local-authority/30UE,Business Support,1095,Business Development & Growth,Refuse Collection,20037,Cleaning and Domestic Supplies,5012,Market Walk Yard 3 - 35yd roll on/roll off cardboard skip @25.00 rental per month - no haulage or disposal costs ,23/01/2019,135086,25.00,Revenue,SUEZ R&R UK LTD,17615
Chorley Borough Council,http://statistics.data.gov.uk/id/local-authority/30UE,Business Support,1095,Business Development & Growth,Refuse Collection,20037,Cleaning and Domestic Supplies,5012,Market Walk Yard 3 -  35yd roll on/roll off plastic skip @25.00 rental per month - no haulage or disposal costs. ,23/01/2019,135086,25.00,Revenue,SUEZ R&R UK LTD,17615
Chorley Borough Council,http://statistics.data.gov.uk/id/local-authority/30UE,Business Support,1095,Business Development & Growth,Refuse Collection,20037,Cleaning and Domestic Supplies,5012,Market Walk Yard 3 - 2 x 8yd FEL general waste @48.07 per lift (per FEL) - estimated at 26 lifts per FEL per year ,23/01/2019,135086,208.62,Revenue,SUEZ R&R UK LTD,17615
Chorley Borough Council,http://statistics.data.gov.uk/id/local-authority/30UE,Unapportionable Central OHeads,1009,Customer & Digital,Refuse Collection,20037,Cleaning and Domestic Supplies,5012,Trade waste collection and disposal from Chorley Council Buildings (Aug 2018 - Mar 2019) CIVIC OFFICES Union St (6 X 1100 litre per week),16/01/2019,135088,250.30,Revenue,SUEZ R&R UK LTD,17615
Chorley Borough Council,http://statistics.data.gov.uk/id/local-authority/30UE,Unapportionable Central OHeads,1009,Customer & Digital,Refuse Collection,20037,Cleaning and Domestic Supplies,5012,Trade waste collection and disposal from Chorley Council Buildings (Aug 2018 - Mar 2019) TOWN HALL. market street (6 X 1100 litre per week),16/01/2019,135088,250.30,Revenue,SUEZ R&R UK LTD,17615
Chorley Borough Council,http://statistics.data.gov.uk/id/local-authority/30UE,Community Development,1097,Customer & Digital,Refuse Collection,20037,Cleaning and Domestic Supplies,5012,Trade waste collection and disposal from Chorley Council Buildings (Aug 2018 - Mar 2019) MP`s OFFICE (35-39) Market St (1 X 1100 litre per week),16/01/2019,135088,41.72,Revenue,SUEZ R&R UK LTD,17615
Chorley Borough Council,http://statistics.data.gov.uk/id/local-authority/30UE,Democratic Represent and  Mgnt,1007,Customer & Digital,Refuse Collection,20037,Cleaning and Domestic Supplies,5012,Provision of Trade waste collection for TATTON CC (Aug 2018- March 2019) (1 x 1100 litre bin per fortnight),16/01/2019,135088,28.75,Revenue,SUEZ R&R UK LTD,17615
Chorley Borough Council,http://statistics.data.gov.uk/id/local-authority/30UE,Democratic Represent and  Mgnt,1007,Customer & Digital,Refuse Collection,20037,Cleaning and Domestic Supplies,5012,Provision of Trade waste collection for EAVES GREEN CC (Aug 2018- March 2019) (1 x 360 litre bin per week),16/01/2019,135088,28.75,Revenue,SUEZ R&R UK LTD,17615
Chorley Borough Council,http://statistics.data.gov.uk/id/local-authority/30UE,Democratic Represent and  Mgnt,1007,Customer & Digital,Refuse Collection,20037,Cleaning and Domestic Supplies,5012,"Provision of Trade waste collection for ASTLEY VILLAGE CC (Aug 2018- March 2019) (1 x 360 litre bin per week)",16/01/2019,135088,28.75,Revenue,SUEZ R&R UK LTD,17615
Chorley Borough Council,http://statistics.data.gov.uk/id/local-authority/30UE,Recreation & Sport,1037,Customer & Digital,Miscellaneous Expenses,40200,Miscellaneous Expenses,5034,Provision of Trade waste collection for LANCASTER WAY CC (Aug 2018- March 2019) (1 x 360 litre bin per week),16/01/2019,135088,28.75,Revenue,SUEZ R&R UK LTD,17615
Chorley Borough Council,http://statistics.data.gov.uk/id/local-authority/30UE,Democratic Represent and  Mgnt,1007,Customer & Digital,Refuse Collection,20037,Cleaning and Domestic Supplies,5012,Provision of Trade waste collection for CLAYTON BROOK VILLAGE HALL (Aug 2018- March 2019) (6 x refuse sack per week),16/01/2019,135088,22.19,Revenue,SUEZ R&R UK LTD,17615
Chorley Borough Council,http://statistics.data.gov.uk/id/local-authority/30UE,Democratic Represent and  Mgnt,1007,Customer & Digital,Refuse Collection,20037,Cleaning and Domestic Supplies,5012,Provision of Trade waste collection for ASTLEY HALL (Aug 2018- March 2019) (1 x 1100 litre bin per week),16/01/2019,135088,41.72,Revenue,SUEZ R&R UK LTD,17615
Chorley Borough Council,http://statistics.data.gov.uk/id/local-authority/30UE,Development Control,1091,Customer & Digital,Consultants` Fees,40077,Services,5027,Services of an external agricultural land advisor for the construction of a Dairy Unit housing up to 600 cows of various ages and infrastructure.,16/01/2019,135075,"2,000.00",Revenue,The Dairy Group Ltd,77685
Chorley Borough Council,http://statistics.data.gov.uk/id/local-authority/30UE,Central Support Services,1009,Early Intervention,Miscellaneous Expenses,40200,Miscellaneous Expenses,5034,Call out for recovery vehicles to remove GRT encampment on Water St Car Park Chorley,30/01/2019,135345,"1,200.00",Revenue,The Mansfield Group,77805
Chorley Borough Council,http://statistics.data.gov.uk/id/local-authority/30UE,Democratic Represent and  Mgnt,1007,Policy & Governance,Exhibitions & Special Events,40158,Miscellaneous Expenses,5034,"Sealed Knot to deliver historical re-enactor service for our Astley Illuminated event on Saturday 24th November 2018, evening. ",09/01/2019,134942,500.00,Revenue,The Sealed Knot Ltd,21045
Chorley Borough Council,http://statistics.data.gov.uk/id/local-authority/30UE,Democratic Represent and  Mgnt,1007,Policy & Governance,Grants To Other Organisations,40127,Grants and Subscriptions,5031,GRANT,23/01/2019,135244,250.00,Revenue,The Wildlife Trust,20386
Chorley Borough Council,http://statistics.data.gov.uk/id/local-authority/30UE,Unapportionable Central OHeads,1009,Chief Executive,Publications,40054,"Printing, Stationery & General",5026,"Online Subscription:  Practical Law UK Public Sector.Online Subscription:  Westlaw UK Services",18/01/2019,135134,"13,233.35",Revenue,Thomson Reuters RE;Sweet & Maxwell Limited,17932
Chorley Borough Council,http://statistics.data.gov.uk/id/local-authority/30UE,Parking Services,1066,Business Development & Growth,External Contractors,50008,Private Contractors,5042,Outstanding Debt Registration Costs,18/01/2019,135144,"1,000.00",Revenue,Traffic Enforcement Centre,22350
Chorley Borough Council,http://statistics.data.gov.uk/id/local-authority/30UE,Business Support,1095,Business Development & Growth,External Contractor,40198,Miscellaneous Expenses,5034,"Seasonal Winter maintenance programme 2018/19 Details as supplied inc 7 day service, standard operating procedure (Salt inclusive)",04/01/2019,134760,315.00,Revenue,Trevelyan Hall Ltd t/a Litterboss,71709
Chorley Borough Council,http://statistics.data.gov.uk/id/local-authority/30UE,Elections,1012,Policy & Governance,Tools & Equipment - Maintenance,40005,"Equipment, Furniture & Materia",5023,Annual maintenance for mailpost 123 chadless letter opener,18/01/2019,135141,350.00,Revenue,Twofold Ltd,77795
Chorley Borough Council,http://statistics.data.gov.uk/id/local-authority/30UE,Service Management & Support,1009,Customer & Digital,Petrol,30005,Direct Transport Costs,5016,25-Nov-18,04/01/2019,134198,644.06,Revenue,Uk Fuels Ltd,57996
Chorley Borough Council,http://statistics.data.gov.uk/id/local-authority/30UE,Unapportionable Central OHeads,1009,Policy & Governance,Miscellaneous Expenses,40200,Miscellaneous Expenses,5034,Expenses,09/01/2019,134811,"1,481.20",Revenue,UK Healthcare (BDHSC),17241
Chorley Borough Council,http://statistics.data.gov.uk/id/local-authority/30UE,Corporate Management,1008,Policy & Governance,Exhibitions & Special Events,40158,Miscellaneous Expenses,5034,Face Painting Christmas Market Walk 2016,09/01/2019,125133,525.00,Revenue,UK Media and Events Limited,71221
Chorley Borough Council,http://statistics.data.gov.uk/id/local-authority/30UE,Unapportionable Central OHeads,1009,Policy & Governance,Exhibitions & Special Events,40158,Miscellaneous Expenses,5034,"Face Painter every Saturday and Sunday in the lead up to Christmas at Astley Hall 10am - 4pm",04/01/2019,134856,"1,400.00",Revenue,UK Media and Events Limited,71221
Chorley Borough Council,http://statistics.data.gov.uk/id/local-authority/30UE,Corporate Management,1008,Policy & Governance,Exhibitions & Special Events,40158,Miscellaneous Expenses,5034,Face Painting Christmas 2016,09/01/2019,134889,"1,050.00",Revenue,UK Media and Events Limited,71221
Chorley Borough Council,http://statistics.data.gov.uk/id/local-authority/30UE,Unapportionable Central OHeads,1009,Customer & Digital,Service Fees,40056,Services,5027,Daily hybrid mail & annual billing,04/01/2019,134832,964.40,Revenue,UKMAIL Ltd (Mail),57758
Chorley Borough Council,http://statistics.data.gov.uk/id/local-authority/30UE,Unapportionable Central OHeads,1009,Customer & Digital,Service Fees,40056,Services,5027,Daily hybrid mail & annual billing,09/01/2019,134897,684.62,Revenue,UKMAIL Ltd (Mail),57758
Chorley Borough Council,http://statistics.data.gov.uk/id/local-authority/30UE,Unapportionable Central OHeads,1009,Customer & Digital,Service Fees,40056,Services,5027,Daily hybrid mail & annual billing,18/01/2019,135021,633.79,Revenue,UKMAIL Ltd (Mail),57758
Chorley Borough Council,http://statistics.data.gov.uk/id/local-authority/30UE,Control Accounts,Control,Policy & Governance,General Balances,100,Balance Sheet,Balance,Monthly Deds from Payroll,18/01/2019,135190,"2,497.16",Revenue,Unify Credit Union Ltd,55509
Chorley Borough Council,http://statistics.data.gov.uk/id/local-authority/30UE,Capital,Capital,Early Intervention,Grants,3002,Capital Expenditure,Capital,ADDRESS REDACTED,02/01/2019,134777,"4,452.50",Capital,UPS Building and Maintenance Ltd,76235
Chorley Borough Council,http://statistics.data.gov.uk/id/local-authority/30UE,Capital,Capital,Early Intervention,Grants,3002,Capital Expenditure,Capital,ADDRESS REDACTED,18/01/2019,135183,"4,107.50",Capital,UPS Building and Maintenance Ltd,76235
Chorley Borough Council,http://statistics.data.gov.uk/id/local-authority/30UE,Capital,Capital,Early Intervention,Grants,3002,Capital Expenditure,Capital,LAS - Adaptation Works,18/01/2019,135200,"5,123.50",Capital,UPS Building and Maintenance Ltd,76235
Chorley Borough Council,http://statistics.data.gov.uk/id/local-authority/30UE,Capital,Capital,Early Intervention,Grants,3002,Capital Expenditure,Capital,ADDRESS REDACTED,30/01/2019,135326,"4,201.40",Capital,UPS Building and Maintenance Ltd,76235
Chorley Borough Council,http://statistics.data.gov.uk/id/local-authority/30UE,Capital,Capital,Business Development & Growth,Consultants Fees,3025,Capital Expenditure,Capital,additional attendance at pre start meeting for cemetery works,16/01/2019,135009,337.00,Capital,Urban Design and Consult Ltd,77318
Chorley Borough Council,http://statistics.data.gov.uk/id/local-authority/30UE,Planning Policy,1092,Business Development & Growth,Professional Fees,40063,Services,5027,Fees and expenses for consultant support for the Central Lancashire Local Plan.,11/01/2019,134395,"3,413.20",Revenue,Urban Vision Partnership Ltd,21181
Chorley Borough Council,http://statistics.data.gov.uk/id/local-authority/30UE,Corporate Management,1008,Customer & Digital,Unitary Payment(S),50009,Private Contractors,5042,Provision of waste and recycling collection service and ancillary services for 2018/19.,02/01/2019,134671,"283,978.53",Revenue,Veolia ES (UK) Ltd,20748
Chorley Borough Council,http://statistics.data.gov.uk/id/local-authority/30UE,Central Support Services,1009,Policy & Governance,Car Leasing Payment,14100,Direct Employee Expenses,5001,Expenses,30/01/2019,134471,537.42,Revenue,VWFS UK Ltd T/A Volkswagen Group Leasing,56010
Chorley Borough Council,http://statistics.data.gov.uk/id/local-authority/30UE,Central Support Services,1009,Policy & Governance,Car Leasing Payment,14100,Direct Employee Expenses,5001,Expenses,30/01/2019,134471,46.82,Revenue,VWFS UK Ltd T/A Volkswagen Group Leasing,56010
Chorley Borough Council,http://statistics.data.gov.uk/id/local-authority/30UE,Economic Development,1096,Policy & Governance,Car Leasing Payment,14100,Direct Employee Expenses,5001,Expenses,30/01/2019,135379,"1,992.34",Revenue,VWFS UK Ltd T/A Volkswagen Group Leasing,56010
Chorley Borough Council,http://statistics.data.gov.uk/id/local-authority/30UE,Economic Development,1096,Policy & Governance,Car Leasing Payment,14100,Direct Employee Expenses,5001,Expenses,30/01/2019,135379,170.41,Revenue,VWFS UK Ltd T/A Volkswagen Group Leasing,56010
Chorley Borough Council,http://statistics.data.gov.uk/id/local-authority/30UE,Unapportionable Central OHeads,1009,Business Development & Growth,Water - Metered Supplies,20022,Water Services,5009,5/11/18 to 15/1/19,25/01/2019,135325,349.55,Revenue,Water-plus,17926
Chorley Borough Council,http://statistics.data.gov.uk/id/local-authority/30UE,Central Support Services,1009,Business Development & Growth,HR Recruitment - Advertising,15300,Indirect Employee Expenses,5002,Advertising Job Board,02/01/2019,134767,"2,000.00",Revenue,We Are Sunday,77742
Chorley Borough Council,http://statistics.data.gov.uk/id/local-authority/30UE,Unapportionable Central OHeads,1009,Chief Executive,Postages,40082,Communication and Computing,5028,Collection of mail from Town Hall and Union St to March 2019,16/01/2019,134961,254.55,Revenue,Whistl North Limited,67256
Chorley Borough Council,http://statistics.data.gov.uk/id/local-authority/30UE,Planning Policy,1092,Business Development & Growth,Legal Fees,40171,Miscellaneous Expenses,5034,arley street,11/01/2019,135018,900.00,Revenue,Wilson Horne,77750
Chorley Borough Council,http://statistics.data.gov.uk/id/local-authority/30UE,Service Management & Support,1009,Customer & Digital,Vehicles and Plant Maintenance,30045,Direct Transport Costs,5016,"Full service, MOT, and worn n/s rear tyre replaced, dated 24/10/2018, on vehicle Peugeot Partner GUAG van",04/01/2019,134810,226.02,Revenue,Wrekamendid Services Ltd,21188
Chorley Borough Council,http://statistics.data.gov.uk/id/local-authority/30UE,Service Management & Support,1009,Customer & Digital,Vehicles and Plant Maintenance,30045,Direct Transport Costs,5016,MOT,04/01/2019,134810,30.00,Revenue,Wrekamendid Services Ltd,21188
Chorley Borough Council,http://statistics.data.gov.uk/id/local-authority/30UE,Corporate Management,1008,Chief Executive,Employee Related Insurance,18003,Indirect Employee Expenses,5002,Engineering Insurance Jan- Dec 2019,16/01/2019,134858,"1,875.35",Revenue,Zurich Insurance Company,16236
Chorley Borough Council,http://statistics.data.gov.uk/id/local-authority/30UE,Corporate Management,1008,Chief Executive,Employee Related Insurance,18003,Indirect Employee Expenses,5002,Engineering Inspection Jan - Dec 2019,16/01/2019,134872,"6,719.42",Revenue,Zurich Insurance Company,16236
